Workbook

Sheet 1. Info
AB1: Algoma Power Inc.
AB2: Atikokan Hydro Inc.
AB3: Attawapiskat Power Corporation
AB4: Bluewater Power Distribution Corporation
AB5: Brant County Power Inc.
AB6: Brantford Power Inc.
AB7: Burlington Hydro Inc.
AB8: Cambridge and North Dumfries Hydro Inc.
AB9: Canadian Niagara Power Inc.
AB10: Centre Wellington Hydro Ltd.
AB11: Chapleau Public Utilities Corporation
AB12: COLLUS PowerStream Corp.
A13: Drop-down lists are shaded blue; Input cells are shaded green. | AB13: Cooperative Hydro Embrun Inc.
AB14: E.L.K. Energy Inc.
C15: Utility Name | D15: Milton Hydro Distribution Inc. | AB15: Enersource Hydro Mississauga Inc.
AB16: Entegrus Powerlines Inc.
C17: Service Territory | D17: Town of Milton | AB17: EnWin Utilities Ltd.
AB18: Erie Thames Powerlines Corporation
C19: Assigned EB Number | D19: EB-2015-0089 | AB19: Espanola Regional Hydro Distribution Corporation
AB20: Essex Powerlines Corporation
C21: Name and Title | D21: Cameron McKenzie, Director Regulatory Affairs | AB21: Festival Hydro Inc.
AB22: Fort Albany Power Corporation
C23: Phone Number | D23: 289-429-5212 | AB23: Fort Frances Power Corporation
AB24: Greater Sudbury Hydro Inc.
C25: Email Address | D25: cameronmckenzie@miltonhydro.com | AB25: Grimsby Power Inc.
AB26: Guelph Hydro Electric Systems Inc.
C27: Date | D27: 2015-08-28 | AB27: Haldimand County Hydro Inc.
AB28: Halton Hills Hydro Inc.
C29: Last COS Re-based Year | D29: 2011 | AB29: Hearst Power Distribution Company Limited
AB30: Horizon Utilities Corporation
AB31: Hydro 2000 Inc.
AB32: Hydro Hawkesbury Inc.
AB33: Hydro One Brampton Networks Inc.
AB34: Hydro One Networks Inc.
AB35: Hydro One Remote Communities Inc.
AB36: Hydro Ottawa Limited
AB37: Innpower Corporation
AB38: Kashechewan Power Corporation
AB39: Kenora Hydro Electric Corporation Ltd.
AB40: Kingston Hydro Corporation
AB41: Kitchener-Wilmot Hydro Inc.
AB42: Lakefront Utilities Inc.
AB43: Lakeland Power Distribution Ltd.
AB44: London Hydro Inc.
AB45: Midland Power Utility Corporation
AB46: Milton Hydro Distribution Inc.
AB47: Newmarket-Tay Power Distribution Ltd.
AB48: Niagara Peninsula Energy Inc.
AB49: Niagara-on-the-Lake Hydro Inc.
AB50: Norfolk Power Distribution Inc.
AB51: North Bay Hydro Distribution Limited
AB52: Northern Ontario Wires Inc.
AB53: Oakville Hydro Electricity Distribution Inc.
AB54: Orangeville Hydro Limited
AB55: Orillia Power Distribution Corporation
AB56: Oshawa PUC Networks Inc.
AB57: Ottawa River Power Corporation
AB58: Peterborough Distribution Incorporated
AB59: PowerStream Inc.
AB60: PUC Distribution Inc.
AB61: Renfrew Hydro Inc.
AB62: Rideau St. Lawrence Distribution Inc.
AB63: Sioux Lookout Hydro Inc.
AB64: St. Thomas Energy Inc.
AB65: Thunder Bay Hydro Electricity Distribution Inc.
AB66: Tillsonburg Hydro Inc.
AB67: Toronto Hydro-Electric System Limited
AB68: Veridian Connections Inc.
AB69: Wasaga Distribution Inc.
AB70: Waterloo North Hydro Inc.
AB71: Welland Hydro-Electric System Corp.
AB72: Wellington North Power Inc.
AB73: West Coast Huron Energy Inc.
AB74: Westario Power Inc.
AB75: Whitby Hydro Electric Corporation
AB76: Woodstock Hydro Services Inc.

Sheet 2. Table of Contents
D20: 1. Info | I20: 6. Historical Wholesale
D22: 2. Table of Contents | I22: 7. Current Wholesale
D24: 3. Rate Classes | I24: 8. Forecast Wholesale
D26: 4. RRR Data | I26: 9. RTSR Rates to Forecast
D28: 5. UTRs and Sub-Transmission

Sheet 3. Rate Classes
C13: 1. Select the appropriate rate classes that appear on your most recent Board-Approved Tariff of Rates and Charges. 2. Enter the RTS Network and Connection Rate as it appears on the Tariff of Rates and Charges
C15: Rate Class | E15: Unit | G15: RTSR-Network | I15: RTSR-Connection
C17: Residential | E17: kWh | G17: 0.0079 | I17: 0.006 | L17: =IF(OR(ISBLANK(C17), ISERROR(FIND("Choose", C17))=FALSE), 0, 1) -> 1 | M17: ="C" & ROW(C17) -> C17 | N17: =IF(OR(C17="General Service Intermediate Rate Class 1,000 To 4,999 kW (formerly General Service > 50 kW Customers)", C17="General Service Intermediate Rate Class 1,000 To 4,999 kW (formerly Large Use Customers)"), "x", "") ->  | W17: Choose Rate Class
C18: General Service Less Than 50 kW | E18: kWh | G18: 0.0073 | I18: 0.0053 | L18: 1 | M18: C18 | N18: =IF(OR(C18="General Service Intermediate Rate Class 1,000 To 4,999 kW (formerly General Service > 50 kW Customers)", C18="General Service Intermediate Rate Class 1,000 To 4,999 kW (formerly Large Use Customers)"), "x", "") ->  | W18: Residential
C19: General Service 50 to 999 kW | E19: kW | G19: 3.2739 | I19: 2.4627 | L19: 1 | M19: C19 | W19: Residential Regular
C20: General Service 1,000 to 4,999 kW | E20: kW | G20: 3.2199 | I20: 2.4225 | L20: 1 | M20: C20 | W20: Residential Urban
C21: Large Use | E21: kW | G21: 3.4867 | I21: 2.7092 | L21: 1 | M21: C21 | W21: Residential Urban Year-Round
C22: Sentinel Lighting | E22: kW | G22: 2.2287 | I22: 1.6914 | L22: 1 | M22: C22 | W22: Residential Suburban
C23: Street Lighting | E23: kW | G23: 2.2173 | I23: 1.6566 | L23: 1 | M23: C23 | W23: Residential Suburban Seasonal
C24: Unmetered Scattered Load | E24: kWh | G24: 0.0073 | I24: 0.0053 | L24: 1 | M24: C24 | W24: Residential Suburban Year Round
C25: Choose Rate Class | L25: 0 | M25: C25 | W25: Residential - Time of Use
C26: Choose Rate Class | L26: 0 | M26: C26 | W26: Residential - Hensall
C27: Choose Rate Class | L27: 0 | M27: C27 | W27: Residential – High Density [R1]
C28: Choose Rate Class | L28: 0 | M28: C28 | W28: Residential – Normal Density [R2]
C29: Choose Rate Class | L29: 0 | M29: C29 | W29: Seasonal Residential – High Density [R3]
C30: Choose Rate Class | L30: 0 | M30: C30 | W30: Seasonal Residential – Normal Density [R4]
C31: Choose Rate Class | L31: 0 | M31: C31 | W31: Residential – Urban [UR]
C32: Choose Rate Class | L32: 0 | M32: C32 | W32: General Service Less Than 50 kW
C33: Choose Rate Class | L33: 0 | M33: C33 | W33: General Service Less Than 50 kW – Single Phase energy-billed [G1]
C34: Choose Rate Class | L34: 0 | M34: C34 | W34: General Service Less Than 50 kW – Three Phase energy-billed [G3]
C35: Choose Rate Class | L35: 0 | M35: C35 | W35: General Service Less Than 50 kW – Transmission Class energy-billed [T]
C36: Choose Rate Class | L36: 0 | M36: C36 | W36: General Service Less Than 50 kW – Urban energy-billed [UG]
C37: Choose Rate Class | L37: 0 | M37: C37 | W37: Westport Sewage Treatment Plant
C38: Choose Rate Class | L38: 0 | M38: C38 | W38: Small Commercial and USL - per meter
N39: =COUNTIF(N17:N38, "x") -> 0 | W39: Small Commercial and USL - per connection
W40: Farms – Single Phase energy-billed [F1]
W41: General Service 50 to 499 kW
W42: General Service 50 to 699 kW
W43: General Service 50 to 999 kW
W44: General Service 50 to 999 kW - Interval Metered
W45: General Service 50 to 1,000 kW
W46: General Service 50 to 1,000 kW - Interval Meters
W47: General Service 50 to 1,000 kW - Non Interval Meters
W48: General Service 50 to 1,499 kW
W49: General Service 50 to 1,499 kW - Interval Metered
W50: General Service 50 to 2,499 kW
W51: General Service 50 to 2,999 kW
W52: General Service 50 to 2,999 kW - Time of Use
W53: General Service 50 to 4,999 kW
W54: General Service 50 to 4,999 kW – Interval Metered
W55: General Service 50 to 4,999 kW - Time of Use
W56: General Service 50 to 4,999 kW (CoGeneration)
W57: General Service 50 to 4,999 kW (formerly Time of Use)
W58: General Service 500 to 4,999 kW
W59: General Service 700 to 4,999 kW
W60: General Service 1,000 to 2,999 kW
W61: General Service 1,000 to 4,999 kW
W62: General Service 1,000 to 4,999 kW - Interval Meters
W63: General Service 1,000 To 4,999 kW (co-generation)
W64: General Service Greater Than 1,000 kW
W65: General Service Intermediate Rate Class 1,000 To 4,999 kW (formerly Large Use Customers)
W66: General Service Intermediate Rate Class 1,000 To 4,999 kW (formerly General Service > 50 kW Customers)
W67: General Service 1,500 to 4,999 kW
W68: General Service Equal To Or Greater Than 1,500 kW
W69: General Service Equal To Or Greater Than 1,500 kW - Interval Metered
W70: General Service Intermediate 1,000 To 4,999 kW
W71: General Service 2,500 to 4,999 kW
W72: General Service 3,000 to 4,999 kW
W73: General Service 3,000 to 4,999 kW - Interval Metered
W74: General Service 3,000 to 4,999 kW - Intermediate Use
W75: General Service 3,000 to 4,999 kW - Time of Use
W76: Intermediate With Self Generation
W77: General Service - Commercial
W78: General Service - Institutional
W79: Farms – Three Phase energy-billed [F3]
W80: Large Use
W81: Large Use - Regular
W82: Large Use > 5000 kW
W83: Large Use - 3TS
W84: Large Use - Ford Annex
W85: Unmetered Scattered Load
W86: Sentinel Lighting
W87: Street Lighting
W88: Embedded Distributor
W89: Low Voltage Wheeling Charge Rate
W90: Stand-By
W91: Standby Power
W92: Standby Power – INTERIM APPROVAL
W93: Standby Power - APPROVED ON AN INTERIM BASIS
W94: Standby - General Service 50 - 1,000 kW
W95: Standby Power General Service 50 to 1,499 kW
W96: Standby - General Service 1,000 - 5,000 kW
W97: Standby Power General Service 1,500 to 4,999 kW
W98: Standby - Large Use
W99: Standby Power General Service Large Use
W100: Standby Distribution Service

Sheet 4. RRR Data
B15: Rate Class | C15: Rate Description | D15: Unit | E15: Rate | F15: Non-Loss Adjusted Metered kWh | G15: Non-Loss Adjusted Metered kW | H15: Applicable Loss Factor eg: (1.0325) | I15: Loss Adjusted Billed kWh
B17: Residential | C17: RTSR - Network | D17: kWh | E17: 0.0079 | F17: 290591983 | H17: 1.0362 | I17: =F17*H17 -> 301111412.8
B18: Residential | C18: RTSR - Connection | D18: kWh | E18: 0.006 | F18: 290591983 | H18: 1.0362 | I18: =F18*H18 -> 301111412.8
B19: General Service Less Than 50 kW | C19: RTSR - Network | D19: kWh | E19: 0.0073 | F19: 88384427 | H19: 1.0362 | I19: =F19*H19 -> 91583943.26
B20: General Service Less Than 50 kW | C20: RTSR - Connection | D20: kWh | E20: 0.0053 | F20: 88384427 | H20: 1.0362 | I20: =F20*H20 -> 91583943.26
B21: General Service 50 to 999 kW | C21: RTSR - Network | D21: kW | E21: 3.2739 | G21: 523668
B22: General Service 50 to 999 kW | C22: RTSR - Connection | D22: kW | E22: 2.4627 | G22: 523668
B23: General Service 1,000 to 4,999 kW | C23: RTSR - Network | D23: kW | E23: 3.2199 | G23: 242504
B24: General Service 1,000 to 4,999 kW | C24: RTSR - Connection | D24: kW | E24: 2.4225 | G24: 242504
B25: Large Use | C25: RTSR - Network | D25: kW | E25: 3.4867 | G25: 253601
B26: Large Use | C26: RTSR - Connection | D26: kW | E26: 2.7092 | G26: 253601
B27: Sentinel Lighting | C27: RTSR - Network | D27: kW | E27: 2.2287 | G27: 419
B28: Sentinel Lighting | C28: RTSR - Connection | D28: kW | E28: 1.6914 | G28: 419
B29: Street Lighting | C29: RTSR - Network | D29: kW | E29: 2.2173 | G29: 20173
B30: Street Lighting | C30: RTSR - Connection | D30: kW | E30: 1.6566 | G30: 20173
B31: Unmetered Scattered Load | C31: RTSR - Network | D31: kWh | E31: 0.0073 | F31: 1339771 | H31: 1.0362 | I31: =F31*H31 -> 1388270.71
B32: Unmetered Scattered Load | C32: RTSR - Connection | D32: kWh | E32: 0.0053 | F32: 1339771 | H32: 1.0362 | I32: =F32*H32 -> 1388270.71

Sheet 5. UTRs and Sub-Transmission
B18: Uniform Transmission Rates | C18: Unit | E18: Effective January 1, 2014 | G18: Effective January 1, 2015 | I18: Effective January 1, 2016
B20: Rate Description | E20: Rate | G20: Rate | I20: Rate
B22: Network Service Rate | C22: kW | E22: 3.82 | G22: 3.78 | I22: 3.66
B24: Line Connection Service Rate | C24: kW | E24: 0.82 | G24: 0.86 | I24: 0.87
B26: Transformation Connection Service Rate | C26: kW | E26: 1.98 | G26: 2 | I26: 2.02
B29: Hydro One Sub-Transmission Rates | C29: Unit | E29: Effective January 1, 2014 to April 30, 2015 | G29: Effective May 1, 2015 | I29: Effective January 1, 2016
B33: Rate Description | E33: Rate | G33: Rate | I33: Rate
B35: Network Service Rate | C35: kW | E35: 3.23 | G35: 3.4121 | I35: 3.3396
B37: Line Connection Service Rate | C37: kW | E37: 0.65 | G37: 0.7879 | I37: 0.7791
B39: Transformation Connection Service Rate | C39: kW | E39: 1.62 | G39: 1.8018 | I39: 1.7713
B41: Both Line and Transformation Connection Service Rate | C41: kW | E41: =SUM(E39,E37) -> 2.27 | G41: =SUM(G39,G37) -> 2.5897 | I41: =SUM(I39,I37) -> 2.5504
B44: If needed, add extra host here. (I) | C44: Unit | E44: Effective January 1, 2014 | G44: Effective January 1, 2015 | I44: Effective January 1, 2016
B48: Rate Description | E48: Rate | G48: Rate | I48: Rate
B50: Network Service Rate | C50: kW
B52: Line Connection Service Rate | C52: kW
B54: Transformation Connection Service Rate | C54: kW
B56: Both Line and Transformation Connection Service Rate | C56: kW | E56: =SUM(E52,E54) -> 0 | G56: =SUM(G52,G54) -> 0 | I56: =I54+I52 -> 0
B59: If needed, add extra host here. (II) | C59: Unit | E59: Effective January 1, 2014 | G59: Effective January 1, 2015 | I59: Effective January 1, 2016
B63: Rate Description | E63: Rate | G63: Rate | I63: Rate
B65: Network Service Rate | C65: kW
B67: Line Connection Service Rate | C67: kW
B69: Transformation Connection Service Rate | C69: kW
B71: Both Line and Transformation Connection Service Rate | C71: kW | E71: =SUM(E67,E69) -> 0 | G71: =SUM(G67,G69) -> 0 | I71: =I69+I67 -> 0
B75: Hydro One Sub-Transmission Rate Rider 9A | C75: Unit | E75: Effective January 1, 2014 | G75: Effective January 1, 2015 | I75: Effective January 1, 2016
B77: Rate Description | E77: Rate | G77: Rate | I77: Rate
B79: RSVA Transmission network – 4714 – which affects 1584 | C79: kW | E79: 0.1465 | G79: 0 | I79: 0
B81: RSVA Transmission connection – 4716 – which affects 1586 | C81: kW | E81: 0.0667 | G81: 0 | I81: 0
B83: RSVA LV – 4750 – which affects 1550 | C83: kW | E83: 0.0475 | G83: 0 | I83: 0
B85: RARA 1 – 2252 – which affects 1590 | C85: kW | E85: 0.0419 | G85: 0 | I85: 0
B87: RARA 1 – 2252 – which affects 1590 (2008) | C87: kW | E87: -0.027 | G87: 0 | I87: 0
B89: RARA 1 – 2252 – which affects 1590 (2009) | C89: kW | E89: -0.0006 | G89: 0 | I89: 0
B91: Hydro One Sub-Transmission Rate Rider 9A | C91: kW | E91: 0.275 | G91: 0 | I91: =SUM(I79:I89) -> 0
E94: Historical 2014 | G94: Current 2015 | I94: Forecast 2016
B95: Low Voltage Switchgear Credit (if applicable, enter as a negative value) | C95: $

Sheet 6. Historical Wholesale
B21: IESO | D21: Network | H21: Line Connection | L21: Transformation Connection | P21: Total Line
B22: Month | D22: Units Billed | E22: Rate | F22: Amount | H22: Units Billed | I22: Rate | J22: Amount | L22: Units Billed | M22: Rate | N22: Amount | P22: Amount
B24: January | D24: 118608 | E24: =IF(D24<>0,F24/D24,0) -> 3.82 | F24: 453082.56 | H24: 124449 | I24: =IF(H24<>0,J24/H24,0) -> 0.82 | J24: 102048.18 | L24: 124449 | M24: =IF(L24<>0,N24/L24,0) -> 1.98 | N24: 246409.02 | P24: =J24+N24 -> 348457.2
B25: February | D25: 119208 | E25: =IF(D25<>0,F25/D25,0) -> 3.82 | F25: 455374.56 | H25: 120625 | I25: =IF(H25<>0,J25/H25,0) -> 0.82 | J25: 98912.5 | L25: 120625 | M25: =IF(L25<>0,N25/L25,0) -> 1.98 | N25: 238837.5 | P25: 337750
B26: March | D26: 121238 | E26: 3.82 | F26: 463129.16 | H26: 122270 | I26: 0.82 | J26: 100261.4 | L26: 122270 | M26: 1.98 | N26: 242094.6 | P26: 342356
B27: April | D27: 98489 | E27: 3.82 | F27: 376227.98 | H27: 104123 | I27: 0.82 | J27: 85380.86 | L27: 104123 | M27: 1.98 | N27: 206163.54 | P27: 291544.4
B28: May | D28: 119364 | E28: 3.82 | F28: 455970.48 | H28: 119364 | I28: 0.82 | J28: 97878.48 | L28: 119364 | M28: 1.98 | N28: 236340.72 | P28: 334219.2
B29: June | D29: 125911 | E29: 3.82 | F29: 480980.02 | H29: 141938 | I29: 0.82 | J29: 116389.16 | L29: 141938 | M29: 1.98 | N29: 281037.24 | P29: 397426.4
B30: July | D30: 145194 | E30: 3.82 | F30: 554641.08 | H30: 153636 | I30: 0.82 | J30: 125981.52 | L30: 153636 | M30: 1.98 | N30: 304199.28 | P30: 430180.8
B31: August | D31: 137460 | E31: 3.82 | F31: 525097.2 | H31: 137460 | I31: 0.82 | J31: 112717.2 | L31: 137460 | M31: 1.98 | N31: 272170.8 | P31: 384888
B32: September | D32: 137287 | E32: 3.82 | F32: 524436.34 | H32: 137287 | I32: 0.82 | J32: 112575.34 | L32: 137287 | M32: 1.98 | N32: 271828.26 | P32: 384403.6
B33: October | D33: 103077 | E33: 3.82 | F33: 393754.14 | H33: 107531 | I33: 0.82 | J33: 88175.42 | L33: 107531 | M33: 1.98 | N33: 212911.38 | P33: 301086.8
B34: November | D34: 112438 | E34: 3.82 | F34: 429513.16 | H34: 114978 | I34: 0.82 | J34: 94281.96 | L34: 114978 | M34: 1.98 | N34: 227656.44 | P34: 321938.4
B35: December | D35: 112550 | E35: 3.82 | F35: 429941 | H35: 116452 | I35: 0.82 | J35: 95490.64 | L35: 116452 | M35: 1.98 | N35: 230574.96 | P35: 326065.6
B37: Total | D37: =SUM(D24:D35) -> 1450824 | E37: =IF(D37<>0,F37/D37,0) -> 3.82 | F37: =SUM(F24:F35) -> 5542147.68 | H37: =SUM(H24:H35) -> 1500113 | I37: =IF(H37<>0,J37/H37,0) -> 0.82 | J37: =SUM(J24:J35) -> 1230092.66 | L37: =SUM(L24:L35) -> 1500113 | M37: =IF(L37<>0,N37/L37,0) -> 1.98 | N37: =SUM(N24:N35) -> 2970223.74 | P37: =SUM(P24:P35) -> 4200316.4
B39: Hydro One | D39: Network | H39: Line Connection | L39: Transformation Connection | P39: Total Line
B41: Month | D41: Units Billed | E41: Rate | F41: Amount | H41: Units Billed | I41: Rate | J41: Amount | L41: Units Billed | M41: Rate | N41: Amount | P41: Amount
B43: January | D43: 32662 | E43: =IF(D43<>0,F43/D43,0) -> 3.229995101 | F43: =93242.06+12256.04 -> 105498.1 | H43: =28867.51+3794.44 -> 32661.95 | I43: =IF(H43<>0,J43/H43,0) -> 0.6500000765 | J43: 21230.27 | L43: 32661.95 | M43: =IF(L43<>0,N43/L43,0) -> 1.62 | N43: 52912.359 | P43: =J43+N43 -> 74142.629
B44: February | D44: 14375 | E44: =IF(D44<>0,F44/D44,0) -> 3.229931826 | F44: =34843.23+11587.04 -> 46430.27 | H44: =10876.73+3587.32 -> 14464.05 | I44: =IF(H44<>0,J44/H44,0) -> 0.65 | J44: 9401.6325 | L44: 14464.05 | M44: =IF(L44<>0,N44/L44,0) -> 1.62 | N44: 23431.761 | P44: 32833.3935
B45: March | D45: 15181 | E45: 3.230003952 | F45: =38521.84+10512.85 -> 49034.69 | H45: =13639.75+3254.75 -> 16894.5 | I45: 0.65 | J45: 10981.425 | L45: 16894.5 | M45: 1.62 | N45: 27369.09 | P45: 38350.515
B46: April | D46: 14271 | E46: 3.23010721 | F46: =37868.78+8228.08 -> 46096.86 | H46: =12850.12+2547.39 -> 15397.51 | I46: 0.65 | J46: 10008.3815 | L46: 15397.51 | M46: 1.62 | N46: 24943.9662 | P46: 34952.3477
B47: May | D47: 11344 | E47: 3.229925952 | F47: =27799.98+8840.3 -> 36640.28 | H47: =8606.81+3064.91 -> 11671.72 | I47: 0.65 | J47: 7586.618 | L47: 11671.72 | M47: 1.62 | N47: 18908.1864 | P47: 26494.8044
B48: June | D48: 18761 | E48: 3.229984009 | F48: =54803.94+5793.79 -> 60597.73 | H48: =16967.16+1860.15 -> 18827.31 | I48: 0.65 | J48: 12237.7515 | L48: 18827.31 | M48: 1.62 | N48: 30500.2422 | P48: 42737.9937
B49: July | D49: 9402 | E49: 3.229951074 | F49: =24883.88+5484.12 -> 30368 | H49: =8011.47+1706.29 -> 9717.76 | I49: 0.65 | J49: 6316.544 | L49: 9717.76 | M49: 1.62 | N49: 15742.7712 | P49: 22059.3152
B50: August | D50: 11224 | E50: 3.230122951 | F50: =30582.75+5672.15 -> 36254.9 | H50: =9468.34+1872.57 -> 11340.91 | I50: 0.65 | J50: 7371.5915 | L50: 11340.91 | M50: 1.62 | N50: 18372.2742 | P50: 25743.8657
B51: September | D51: 28406 | E51: 3.230034148 | F51: 91752.35 | H51: 33897 | I51: 0.65 | J51: 22033.05 | L51: 33897 | M51: 1.62 | N51: 54913.14 | P51: 76946.19
B52: October | D52: 23366 | E52: 3.230018403 | F52: 75472.61 | H52: 25618 | I52: 0.65 | J52: 16651.7 | L52: 25618 | M52: 1.62 | N52: 41501.16 | P52: 58152.86
B53: November | D53: 10781 | E53: 3.229857156 | F53: 34821.09 | H53: 10827 | I53: 0.65 | J53: 7037.55 | L53: 10827 | M53: 1.62 | N53: 17539.74 | P53: 24577.29
B54: December | D54: 10593 | E54: 3.23008685 | F54: 34216.31 | H54: =7617.33+2975.96 -> 10593.29 | I54: 0.65 | J54: 6885.6385 | L54: 10593.29 | M54: 1.62 | N54: 17161.1298 | P54: 24046.7683
B56: Total | D56: =SUM(D43:D54) -> 200366 | E56: =IF(D56<>0,F56/D56,0) -> 3.230005041 | F56: =SUM(F43:F54) -> 647183.19 | H56: =SUM(H43:H54) -> 211911 | I56: =IF(H56<>0,J56/H56,0) -> 0.6500000118 | J56: =SUM(J43:J54) -> 137742.1525 | L56: =SUM(L43:L54) -> 211911 | M56: =IF(L56<>0,N56/L56,0) -> 1.62 | N56: =SUM(N43:N54) -> 343295.82 | P56: =SUM(P43:P54) -> 481037.9725
B58: Add Extra Host Here (I) | D58: Network | H58: Line Connection | L58: Transformation Connection | P58: Total Line
B59: (if needed)
B60: Month | D60: Units Billed | E60: Rate | F60: Amount | H60: Units Billed | I60: Rate | J60: Amount | L60: Units Billed | M60: Rate | N60: Amount | P60: Amount
B62: January | E62: =IF(D62<>0,F62/D62,0) -> 0 | I62: =IF(H62<>0,J62/H62,0) -> 0 | M62: =IF(L62<>0,N62/L62,0) -> 0 | P62: =J62+N62 -> 0
B63: February | E63: 0 | I63: 0 | M63: 0 | P63: 0
B64: March | E64: 0 | I64: 0 | M64: 0 | P64: 0
B65: April | E65: 0 | I65: 0 | M65: 0 | P65: 0
B66: May | E66: 0 | I66: 0 | M66: 0 | P66: 0
B67: June | E67: 0 | I67: 0 | M67: 0 | P67: 0
B68: July | E68: 0 | I68: 0 | M68: 0 | P68: 0
B69: August | E69: 0 | I69: 0 | M69: 0 | P69: 0
B70: September | E70: 0 | I70: 0 | M70: 0 | P70: 0
B71: October | E71: 0 | I71: 0 | M71: 0 | P71: 0
B72: November | E72: 0 | I72: 0 | M72: 0 | P72: 0
B73: December | E73: 0 | I73: 0 | M73: 0 | P73: 0
B75: Total | D75: =SUM(D62:D73) -> 0 | E75: =IF(D75<>0,F75/D75,0) -> 0 | F75: =SUM(F62:F73) -> 0 | H75: =SUM(H62:H73) -> 0 | I75: =IF(H75<>0,J75/H75,0) -> 0 | J75: =SUM(J62:J73) -> 0 | L75: =SUM(L62:L73) -> 0 | M75: =IF(L75<>0,N75/L75,0) -> 0 | N75: =SUM(N62:N73) -> 0 | P75: =SUM(P62:P73) -> 0
B77: Add Extra Host Here (II) | D77: Network | H77: Line Connection | L77: Transformation Connection | P77: Total Line
B78: (if needed)
B79: Month | D79: Units Billed | E79: Rate | F79: Amount | H79: Units Billed | I79: Rate | J79: Amount | L79: Units Billed | M79: Rate | N79: Amount | P79: Amount
B81: January | E81: =IF(D81<>0,F81/D81,0) -> 0 | I81: =IF(H81<>0,J81/H81,0) -> 0 | M81: =IF(L81<>0,N81/L81,0) -> 0 | P81: =J81+N81 -> 0
B82: February | E82: 0 | I82: 0 | M82: 0 | P82: 0
B83: March | E83: 0 | I83: 0 | M83: 0 | P83: 0
B84: April | E84: 0 | I84: 0 | M84: 0 | P84: 0
B85: May | E85: 0 | I85: 0 | M85: 0 | P85: 0
B86: June | E86: 0 | I86: 0 | M86: 0 | P86: 0
B87: July | E87: 0 | I87: 0 | M87: 0 | P87: 0
B88: August | E88: 0 | I88: 0 | M88: 0 | P88: 0
B89: September | E89: 0 | I89: 0 | M89: 0 | P89: 0
B90: October | E90: 0 | I90: 0 | M90: 0 | P90: 0
B91: November | E91: 0 | I91: 0 | M91: 0 | P91: 0
B92: December | E92: 0 | I92: 0 | M92: 0 | P92: 0
B94: Total | D94: =SUM(D81:D92) -> 0 | E94: =IF(D94<>0,F94/D94,0) -> 0 | F94: =SUM(F81:F92) -> 0 | H94: =SUM(H81:H92) -> 0 | I94: =IF(H94<>0,J94/H94,0) -> 0 | J94: =SUM(J81:J92) -> 0 | L94: =SUM(L81:L92) -> 0 | M94: =IF(L94<>0,N94/L94,0) -> 0 | N94: =SUM(N81:N92) -> 0 | P94: =SUM(P81:P92) -> 0
B96: Total | D96: Network | H96: Line Connection | L96: Transformation Connection | P96: Total Line
B98: Month | D98: Units Billed | E98: Rate | F98: Amount | H98: Units Billed | I98: Rate | J98: Amount | L98: Units Billed | M98: Rate | N98: Amount | P98: Amount
B100: January | D100: =D24+D43+D62+D81 -> 151270 | E100: =IF(D100<>0,F100/D100,0) -> 3.692606994 | F100: =F24+F43+F62+F81 -> 558580.66 | H100: =H24+H43+H62+H81 -> 157110.95 | I100: =IF(H100<>0,J100/H100,0) -> 0.7846585486 | J100: =J24+J43+J62+J81 -> 123278.45 | L100: =L24+L43+L62+L81 -> 157110.95 | M100: =IF(L100<>0,N100/L100,0) -> 1.905159246 | N100: =N24+N43+N62+N81 -> 299321.379 | P100: =J100+N100 -> 422599.829
B101: February | D101: =D25+D44+D63+D82 -> 133583 | E101: 3.756502175 | F101: =F25+F44+F63+F82 -> 501804.83 | H101: =H25+H44+H63+H82 -> 135089.05 | I101: 0.8017980177 | J101: =J25+J44+J63+J82 -> 108314.1325 | L101: =L25+L44+L63+L82 -> 135089.05 | M101: 1.941454626 | N101: =N25+N44+N63+N82 -> 262269.261 | P101: 370583.3935
B102: March | D102: 136419 | E102: 3.75434397 | F102: 512163.85 | H102: 139164.5 | I102: 0.7993620859 | J102: 111242.825 | L102: 139164.5 | M102: 1.936296182 | N102: 269463.69 | P102: 380706.515
B103: April | D103: 112760 | E103: 3.745342675 | F103: 422324.84 | H103: 119520.51 | I103: 0.7980993513 | J103: 95389.2415 | L103: 119520.51 | M103: 1.933622156 | N103: 231107.5062 | P103: 326496.7477
B104: May | D104: 130708 | E104: 3.768788138 | F104: 492610.76 | H104: 131035.72 | I104: 0.804857622 | J104: 105465.098 | L104: 131035.72 | M104: 1.947933788 | N104: 255248.9064 | P104: 360714.0044
B105: June | D105: 144672 | E105: 3.743486991 | F105: 541577.75 | H105: 160765.31 | I105: 0.8000912106 | J105: 128626.9115 | L105: 160765.31 | M105: 1.937840211 | N105: 311537.4822 | P105: 440164.3937
B106: July | D106: 154596 | E106: 3.784115242 | F106: 585009.08 | H106: 163353.76 | I106: 0.8098868615 | J106: 132298.064 | L106: 163353.76 | M106: 1.958583942 | N106: 319942.0512 | P106: 452240.1152
B107: August | D107: 148684 | E107: 3.775470797 | F107: 561352.1 | H107: 148800.91 | I107: 0.8070433944 | J107: 120088.7915 | L107: 148800.91 | M107: 1.952562482 | N107: 290543.0742 | P107: 410631.8657
B108: September | D108: 165693 | E108: 3.718857707 | F108: 616188.69 | H108: 171184 | I108: 0.7863374498 | J108: 134608.39 | L108: 171184 | M108: 1.908714599 | N108: 326741.4 | P108: 461349.79
B109: October | D109: 126443 | E109: 3.71097451 | F109: 469226.75 | H109: 133149 | I109: 0.787291831 | J109: 104827.12 | L109: 133149 | M109: 1.910735642 | N109: 254412.54 | P109: 359239.66
B110: November | D110: 123219 | E110: 3.768365674 | F110: 464334.25 | H110: 125805 | I110: 0.8053695004 | J110: 101319.51 | L110: 125805 | M110: 1.949017766 | N110: 245196.18 | P110: 346515.69
B111: December | D111: 123143 | E111: 3.769254525 | F111: 464157.31 | H111: 127045.29 | I111: 0.8058250605 | J111: 102376.2785 | L111: 127045.29 | M111: 1.949982481 | N111: 247736.0898 | P111: 350112.3683
B113: Total | D113: =SUM(D100:D111) -> 1651190 | E113: =IF(D113<>0,F113/D113,0) -> 3.748406222 | F113: =SUM(F100:F111) -> 6189330.87 | H113: =SUM(H100:H111) -> 1712024 | I113: =IF(H113<>0,J113/H113,0) -> 0.7989577322 | J113: =SUM(J100:J111) -> 1367834.812 | L113: =SUM(L100:L111) -> 1712024 | M113: =IF(L113<>0,N113/L113,0) -> 1.9354399 | N113: =SUM(N100:N111) -> 3313519.56 | P113: =SUM(P100:P111) -> 4681354.373
N115: Low Voltage Switchgear Credit (if applicable) | P115: ='5. UTRs and Sub-Transmission'!E95 -> 0
N117: Total including deduction for Low Voltage Switchgear Credit | P117: =P113+P115 -> 4681354.373

Sheet 7. Current Wholesale
B13: The purpose of this sheet is to calculate the expected billing when current 2015 Uniform Transmission Rates are applied against historical 2014 transmission units.
B20: IESO | D20: Network | H20: Line Connection | L20: Transformation Connection | P20: Total Line
B22: Month | D22: Units Billed | E22: Rate | F22: Amount | H22: Units Billed | I22: Rate | J22: Amount | L22: Units Billed | M22: Rate | N22: Amount | P22: Amount
B24: January | D24: ='6. Historical Wholesale'!D24 -> 118608 | E24: ='5. UTRs and Sub-Transmission'!G22 -> 3.78 | F24: =D24*E24 -> 448338.24 | H24: ='6. Historical Wholesale'!H24 -> 124449 | I24: ='5. UTRs and Sub-Transmission'!G24 -> 0.86 | J24: =H24*I24 -> 107026.14 | L24: ='6. Historical Wholesale'!L24 -> 124449 | M24: ='5. UTRs and Sub-Transmission'!G26 -> 2 | N24: =L24*M24 -> 248898 | P24: =J24+N24 -> 355924.14
B25: February | D25: ='6. Historical Wholesale'!D25 -> 119208 | E25: =E24 -> 3.78 | F25: =D25*E25 -> 450606.24 | H25: ='6. Historical Wholesale'!H25 -> 120625 | I25: =I24 -> 0.86 | J25: =H25*I25 -> 103737.5 | L25: ='6. Historical Wholesale'!L25 -> 120625 | M25: =M24 -> 2 | N25: =L25*M25 -> 241250 | P25: 344987.5
B26: March | D26: ='6. Historical Wholesale'!D26 -> 121238 | E26: =E25 -> 3.78 | F26: 458279.64 | H26: ='6. Historical Wholesale'!H26 -> 122270 | I26: =I25 -> 0.86 | J26: 105152.2 | L26: ='6. Historical Wholesale'!L26 -> 122270 | M26: =M25 -> 2 | N26: 244540 | P26: 349692.2
B27: April | D27: ='6. Historical Wholesale'!D27 -> 98489 | E27: 3.78 | F27: 372288.42 | H27: ='6. Historical Wholesale'!H27 -> 104123 | I27: 0.86 | J27: 89545.78 | L27: ='6. Historical Wholesale'!L27 -> 104123 | M27: 2 | N27: 208246 | P27: 297791.78
B28: May | D28: ='6. Historical Wholesale'!D28 -> 119364 | E28: 3.78 | F28: 451195.92 | H28: ='6. Historical Wholesale'!H28 -> 119364 | I28: 0.86 | J28: 102653.04 | L28: ='6. Historical Wholesale'!L28 -> 119364 | M28: 2 | N28: 238728 | P28: 341381.04
B29: June | D29: ='6. Historical Wholesale'!D29 -> 125911 | E29: 3.78 | F29: 475943.58 | H29: ='6. Historical Wholesale'!H29 -> 141938 | I29: 0.86 | J29: 122066.68 | L29: ='6. Historical Wholesale'!L29 -> 141938 | M29: 2 | N29: 283876 | P29: 405942.68
B30: July | D30: ='6. Historical Wholesale'!D30 -> 145194 | E30: 3.78 | F30: 548833.32 | H30: ='6. Historical Wholesale'!H30 -> 153636 | I30: 0.86 | J30: 132126.96 | L30: ='6. Historical Wholesale'!L30 -> 153636 | M30: 2 | N30: 307272 | P30: 439398.96
B31: August | D31: ='6. Historical Wholesale'!D31 -> 137460 | E31: 3.78 | F31: 519598.8 | H31: ='6. Historical Wholesale'!H31 -> 137460 | I31: 0.86 | J31: 118215.6 | L31: ='6. Historical Wholesale'!L31 -> 137460 | M31: 2 | N31: 274920 | P31: 393135.6
B32: September | D32: ='6. Historical Wholesale'!D32 -> 137287 | E32: 3.78 | F32: 518944.86 | H32: ='6. Historical Wholesale'!H32 -> 137287 | I32: 0.86 | J32: 118066.82 | L32: ='6. Historical Wholesale'!L32 -> 137287 | M32: 2 | N32: 274574 | P32: 392640.82
B33: October | D33: ='6. Historical Wholesale'!D33 -> 103077 | E33: 3.78 | F33: 389631.06 | H33: ='6. Historical Wholesale'!H33 -> 107531 | I33: 0.86 | J33: 92476.66 | L33: ='6. Historical Wholesale'!L33 -> 107531 | M33: 2 | N33: 215062 | P33: 307538.66
B34: November | D34: ='6. Historical Wholesale'!D34 -> 112438 | E34: 3.78 | F34: 425015.64 | H34: ='6. Historical Wholesale'!H34 -> 114978 | I34: 0.86 | J34: 98881.08 | L34: ='6. Historical Wholesale'!L34 -> 114978 | M34: 2 | N34: 229956 | P34: 328837.08
B35: December | D35: ='6. Historical Wholesale'!D35 -> 112550 | E35: 3.78 | F35: 425439 | H35: ='6. Historical Wholesale'!H35 -> 116452 | I35: 0.86 | J35: 100148.72 | L35: ='6. Historical Wholesale'!L35 -> 116452 | M35: 2 | N35: 232904 | P35: 333052.72
B37: Total | D37: =SUM(D24:D35) -> 1450824 | E37: =IF(D37<>0,F37/D37,0) -> 3.78 | F37: =SUM(F24:F35) -> 5484114.72 | H37: =SUM(H24:H35) -> 1500113 | I37: =IF(H37<>0,J37/H37,0) -> 0.86 | J37: =SUM(J24:J35) -> 1290097.18 | L37: =SUM(L24:L35) -> 1500113 | M37: =IF(L37<>0,N37/L37,0) -> 2 | N37: =SUM(N24:N35) -> 3000226 | P37: =SUM(P24:P35) -> 4290323.18
B39: Hydro One | D39: Network | H39: Line Connection | L39: Transformation Connection | P39: Total Line
B41: Month | D41: Units Billed | E41: Rate | F41: Amount | H41: Units Billed | I41: Rate | J41: Amount | L41: Units Billed | M41: Rate | N41: Amount | P41: Amount
B43: January | D43: ='6. Historical Wholesale'!D43 -> 32662 | E43: ='5. UTRs and Sub-Transmission'!G35+'5. UTRs and Sub-Transmission'!G79 -> 3.4121 | F43: =D43*E43 -> 111446.0102 | H43: ='6. Historical Wholesale'!H43 -> 32661.95 | I43: ='5. UTRs and Sub-Transmission'!G37+'5. UTRs and Sub-Transmission'!G81 -> 0.7879 | J43: =H43*I43 -> 25734.3504 | L43: ='6. Historical Wholesale'!L43 -> 32661.95 | M43: ='5. UTRs and Sub-Transmission'!G39 -> 1.8018 | N43: =L43*M43 -> 58850.30151 | P43: =J43+N43 -> 84584.65191
B44: February | D44: ='6. Historical Wholesale'!D44 -> 14375 | E44: =E43 -> 3.4121 | F44: =D44*E44 -> 49048.9375 | H44: ='6. Historical Wholesale'!H44 -> 14464.05 | I44: =I43 -> 0.7879 | J44: =H44*I44 -> 11396.225 | L44: ='6. Historical Wholesale'!L44 -> 14464.05 | M44: =M43 -> 1.8018 | N44: =L44*M44 -> 26061.32529 | P44: 37457.55029
B45: March | D45: ='6. Historical Wholesale'!D45 -> 15181 | E45: =E44 -> 3.4121 | F45: 51799.0901 | H45: ='6. Historical Wholesale'!H45 -> 16894.5 | I45: =I44 -> 0.7879 | J45: 13311.17655 | L45: ='6. Historical Wholesale'!L45 -> 16894.5 | M45: =M44 -> 1.8018 | N45: 30440.5101 | P45: 43751.68665
B46: April | D46: ='6. Historical Wholesale'!D46 -> 14271 | E46: 3.4121 | F46: 48694.0791 | H46: ='6. Historical Wholesale'!H46 -> 15397.51 | I46: 0.7879 | J46: 12131.69813 | L46: ='6. Historical Wholesale'!L46 -> 15397.51 | M46: =M45 -> 1.8018 | N46: 27743.23352 | P46: 39874.93165
B47: May | D47: ='6. Historical Wholesale'!D47 -> 11344 | E47: 3.4121 | F47: 38706.8624 | H47: ='6. Historical Wholesale'!H47 -> 11671.72 | I47: 0.7879 | J47: 9196.148188 | L47: ='6. Historical Wholesale'!L47 -> 11671.72 | M47: 1.8018 | N47: 21030.1051 | P47: 30226.25328
B48: June | D48: ='6. Historical Wholesale'!D48 -> 18761 | E48: 3.4121 | F48: 64014.4081 | H48: ='6. Historical Wholesale'!H48 -> 18827.31 | I48: 0.7879 | J48: 14834.03755 | L48: ='6. Historical Wholesale'!L48 -> 18827.31 | M48: 1.8018 | N48: 33923.04716 | P48: 48757.08471
B49: July | D49: ='6. Historical Wholesale'!D49 -> 9402 | E49: 3.4121 | F49: 32080.5642 | H49: ='6. Historical Wholesale'!H49 -> 9717.76 | I49: 0.7879 | J49: 7656.623104 | L49: ='6. Historical Wholesale'!L49 -> 9717.76 | M49: 1.8018 | N49: 17509.45997 | P49: 25166.08307
B50: August | D50: ='6. Historical Wholesale'!D50 -> 11224 | E50: 3.4121 | F50: 38297.4104 | H50: ='6. Historical Wholesale'!H50 -> 11340.91 | I50: 0.7879 | J50: 8935.502989 | L50: ='6. Historical Wholesale'!L50 -> 11340.91 | M50: 1.8018 | N50: 20434.05164 | P50: 29369.55463
B51: September | D51: ='6. Historical Wholesale'!D51 -> 28406 | E51: 3.4121 | F51: 96924.1126 | H51: ='6. Historical Wholesale'!H51 -> 33897 | I51: 0.7879 | J51: 26707.4463 | L51: ='6. Historical Wholesale'!L51 -> 33897 | M51: 1.8018 | N51: 61075.6146 | P51: 87783.0609
B52: October | D52: ='6. Historical Wholesale'!D52 -> 23366 | E52: 3.4121 | F52: 79727.1286 | H52: ='6. Historical Wholesale'!H52 -> 25618 | I52: 0.7879 | J52: 20184.4222 | L52: ='6. Historical Wholesale'!L52 -> 25618 | M52: 1.8018 | N52: 46158.5124 | P52: 66342.9346
B53: November | D53: ='6. Historical Wholesale'!D53 -> 10781 | E53: 3.4121 | F53: 36785.8501 | H53: ='6. Historical Wholesale'!H53 -> 10827 | I53: 0.7879 | J53: 8530.5933 | L53: ='6. Historical Wholesale'!L53 -> 10827 | M53: 1.8018 | N53: 19508.0886 | P53: 28038.6819
B54: December | D54: ='6. Historical Wholesale'!D54 -> 10593 | E54: 3.4121 | F54: 36144.3753 | H54: ='6. Historical Wholesale'!H54 -> 10593.29 | I54: 0.7879 | J54: 8346.453191 | L54: ='6. Historical Wholesale'!L54 -> 10593.29 | M54: 1.8018 | N54: 19086.98992 | P54: 27433.44311
B56: Total | D56: =SUM(D43:D54) -> 200366 | E56: =IF(D56<>0,F56/D56,0) -> 3.4121 | F56: =SUM(F43:F54) -> 683668.8286 | H56: =SUM(H43:H54) -> 211911 | I56: =IF(H56<>0,J56/H56,0) -> 0.7879 | J56: =SUM(J43:J54) -> 166964.6769 | L56: =SUM(L43:L54) -> 211911 | M56: =IF(L56<>0,N56/L56,0) -> 1.8018 | N56: =SUM(N43:N54) -> 381821.2398 | P56: =SUM(P43:P54) -> 548785.9167
B58: ='6. Historical Wholesale'!B58 -> Add Extra Host Here (I) | D58: Network | H58: Line Connection | L58: Transformation Connection | P58: Total Line
B60: Month | D60: Units Billed | E60: Rate | F60: Amount | H60: Units Billed | I60: Rate | J60: Amount | L60: Units Billed | M60: Rate | N60: Amount | P60: Amount
B62: January | D62: ='6. Historical Wholesale'!D62 -> 0 | E62: ='5. UTRs and Sub-Transmission'!G50 -> 0 | F62: =D62*E62 -> 0 | H62: ='6. Historical Wholesale'!H62 -> 0 | I62: ='5. UTRs and Sub-Transmission'!G52 -> 0 | J62: =H62*I62 -> 0 | L62: ='6. Historical Wholesale'!L62 -> 0 | M62: ='5. UTRs and Sub-Transmission'!G54 -> 0 | N62: =L62*M62 -> 0 | P62: =J62+N62 -> 0
B63: February | D63: ='6. Historical Wholesale'!D63 -> 0 | E63: =E62 -> 0 | F63: =D63*E63 -> 0 | H63: ='6. Historical Wholesale'!H63 -> 0 | I63: =I62 -> 0 | J63: =H63*I63 -> 0 | L63: ='6. Historical Wholesale'!L63 -> 0 | M63: =M62 -> 0 | N63: =L63*M63 -> 0 | P63: 0
B64: March | D64: ='6. Historical Wholesale'!D64 -> 0 | E64: =E63 -> 0 | F64: 0 | H64: ='6. Historical Wholesale'!H64 -> 0 | I64: =I63 -> 0 | J64: 0 | L64: ='6. Historical Wholesale'!L64 -> 0 | M64: =M63 -> 0 | N64: 0 | P64: 0
B65: April | D65: ='6. Historical Wholesale'!D65 -> 0 | E65: 0 | F65: 0 | H65: ='6. Historical Wholesale'!H65 -> 0 | I65: 0 | J65: 0 | L65: ='6. Historical Wholesale'!L65 -> 0 | M65: =M64 -> 0 | N65: 0 | P65: 0
B66: May | D66: ='6. Historical Wholesale'!D66 -> 0 | E66: 0 | F66: 0 | H66: ='6. Historical Wholesale'!H66 -> 0 | I66: 0 | J66: 0 | L66: ='6. Historical Wholesale'!L66 -> 0 | M66: 0 | N66: 0 | P66: 0
B67: June | D67: ='6. Historical Wholesale'!D67 -> 0 | E67: 0 | F67: 0 | H67: ='6. Historical Wholesale'!H67 -> 0 | I67: 0 | J67: 0 | L67: ='6. Historical Wholesale'!L67 -> 0 | M67: 0 | N67: 0 | P67: 0
B68: July | D68: ='6. Historical Wholesale'!D68 -> 0 | E68: 0 | F68: 0 | H68: ='6. Historical Wholesale'!H68 -> 0 | I68: 0 | J68: 0 | L68: ='6. Historical Wholesale'!L68 -> 0 | M68: 0 | N68: 0 | P68: 0
B69: August | D69: ='6. Historical Wholesale'!D69 -> 0 | E69: 0 | F69: 0 | H69: ='6. Historical Wholesale'!H69 -> 0 | I69: 0 | J69: 0 | L69: ='6. Historical Wholesale'!L69 -> 0 | M69: 0 | N69: 0 | P69: 0
B70: September | D70: ='6. Historical Wholesale'!D70 -> 0 | E70: 0 | F70: 0 | H70: ='6. Historical Wholesale'!H70 -> 0 | I70: 0 | J70: 0 | L70: ='6. Historical Wholesale'!L70 -> 0 | M70: 0 | N70: 0 | P70: 0
B71: October | D71: ='6. Historical Wholesale'!D71 -> 0 | E71: 0 | F71: 0 | H71: ='6. Historical Wholesale'!H71 -> 0 | I71: 0 | J71: 0 | L71: ='6. Historical Wholesale'!L71 -> 0 | M71: 0 | N71: 0 | P71: 0
B72: November | D72: ='6. Historical Wholesale'!D72 -> 0 | E72: 0 | F72: 0 | H72: ='6. Historical Wholesale'!H72 -> 0 | I72: 0 | J72: 0 | L72: ='6. Historical Wholesale'!L72 -> 0 | M72: 0 | N72: 0 | P72: 0
B73: December | D73: ='6. Historical Wholesale'!D73 -> 0 | E73: 0 | F73: 0 | H73: ='6. Historical Wholesale'!H73 -> 0 | I73: 0 | J73: 0 | L73: ='6. Historical Wholesale'!L73 -> 0 | M73: 0 | N73: 0 | P73: 0
B75: Total | D75: =SUM(D62:D73) -> 0 | E75: =IF(D75<>0,F75/D75,0) -> 0 | F75: =SUM(F62:F73) -> 0 | H75: =SUM(H62:H73) -> 0 | I75: =IF(H75<>0,J75/H75,0) -> 0 | J75: =SUM(J62:J73) -> 0 | L75: =SUM(L62:L73) -> 0 | M75: =IF(L75<>0,N75/L75,0) -> 0 | N75: =SUM(N62:N73) -> 0 | P75: =SUM(P62:P73) -> 0
B77: ='6. Historical Wholesale'!B77 -> Add Extra Host Here (II) | D77: Network | H77: Line Connection | L77: Transformation Connection | P77: Total Line
B79: Month | D79: Units Billed | E79: Rate | F79: Amount | H79: Units Billed | I79: Rate | J79: Amount | L79: Units Billed | M79: Rate | N79: Amount | P79: Amount
B81: January | D81: ='6. Historical Wholesale'!D81 -> 0 | E81: ='5. UTRs and Sub-Transmission'!G65 -> 0 | F81: =D81*E81 -> 0 | H81: ='6. Historical Wholesale'!H81 -> 0 | I81: ='5. UTRs and Sub-Transmission'!G67 -> 0 | J81: =H81*I81 -> 0 | L81: ='6. Historical Wholesale'!L81 -> 0 | M81: ='5. UTRs and Sub-Transmission'!G69 -> 0 | N81: =L81*M81 -> 0 | P81: =J81+N81 -> 0
B82: February | D82: ='6. Historical Wholesale'!D82 -> 0 | E82: =E81 -> 0 | F82: =D82*E82 -> 0 | H82: ='6. Historical Wholesale'!H82 -> 0 | I82: =I81 -> 0 | J82: =H82*I82 -> 0 | L82: ='6. Historical Wholesale'!L82 -> 0 | M82: =M81 -> 0 | N82: =L82*M82 -> 0 | P82: 0
B83: March | D83: ='6. Historical Wholesale'!D83 -> 0 | E83: =E82 -> 0 | F83: 0 | H83: ='6. Historical Wholesale'!H83 -> 0 | I83: =I82 -> 0 | J83: 0 | L83: ='6. Historical Wholesale'!L83 -> 0 | M83: =M82 -> 0 | N83: 0 | P83: 0
B84: April | D84: ='6. Historical Wholesale'!D84 -> 0 | E84: 0 | F84: 0 | H84: ='6. Historical Wholesale'!H84 -> 0 | I84: 0 | J84: 0 | L84: ='6. Historical Wholesale'!L84 -> 0 | M84: =M83 -> 0 | N84: 0 | P84: 0
B85: May | D85: ='6. Historical Wholesale'!D85 -> 0 | E85: 0 | F85: 0 | H85: ='6. Historical Wholesale'!H85 -> 0 | I85: 0 | J85: 0 | L85: ='6. Historical Wholesale'!L85 -> 0 | M85: 0 | N85: 0 | P85: 0
B86: June | D86: ='6. Historical Wholesale'!D86 -> 0 | E86: 0 | F86: 0 | H86: ='6. Historical Wholesale'!H86 -> 0 | I86: 0 | J86: 0 | L86: ='6. Historical Wholesale'!L86 -> 0 | M86: 0 | N86: 0 | P86: 0
B87: July | D87: ='6. Historical Wholesale'!D87 -> 0 | E87: 0 | F87: 0 | H87: ='6. Historical Wholesale'!H87 -> 0 | I87: 0 | J87: 0 | L87: ='6. Historical Wholesale'!L87 -> 0 | M87: 0 | N87: 0 | P87: 0
B88: August | D88: ='6. Historical Wholesale'!D88 -> 0 | E88: 0 | F88: 0 | H88: ='6. Historical Wholesale'!H88 -> 0 | I88: 0 | J88: 0 | L88: ='6. Historical Wholesale'!L88 -> 0 | M88: 0 | N88: 0 | P88: 0
B89: September | D89: ='6. Historical Wholesale'!D89 -> 0 | E89: 0 | F89: 0 | H89: ='6. Historical Wholesale'!H89 -> 0 | I89: 0 | J89: 0 | L89: ='6. Historical Wholesale'!L89 -> 0 | M89: 0 | N89: 0 | P89: 0
B90: October | D90: ='6. Historical Wholesale'!D90 -> 0 | E90: 0 | F90: 0 | H90: ='6. Historical Wholesale'!H90 -> 0 | I90: 0 | J90: 0 | L90: ='6. Historical Wholesale'!L90 -> 0 | M90: 0 | N90: 0 | P90: 0
B91: November | D91: ='6. Historical Wholesale'!D91 -> 0 | E91: 0 | F91: 0 | H91: ='6. Historical Wholesale'!H91 -> 0 | I91: 0 | J91: 0 | L91: ='6. Historical Wholesale'!L91 -> 0 | M91: 0 | N91: 0 | P91: 0
B92: December | D92: ='6. Historical Wholesale'!D92 -> 0 | E92: 0 | F92: 0 | H92: ='6. Historical Wholesale'!H92 -> 0 | I92: 0 | J92: 0 | L92: ='6. Historical Wholesale'!L92 -> 0 | M92: 0 | N92: 0 | P92: 0
B94: Total | D94: =SUM(D81:D92) -> 0 | E94: =IF(D94<>0,F94/D94,0) -> 0 | F94: =SUM(F81:F92) -> 0 | H94: =SUM(H81:H92) -> 0 | I94: =IF(H94<>0,J94/H94,0) -> 0 | J94: =SUM(J81:J92) -> 0 | L94: =SUM(L81:L92) -> 0 | M94: =IF(L94<>0,N94/L94,0) -> 0 | N94: =SUM(N81:N92) -> 0 | P94: =SUM(P81:P92) -> 0
B96: Total | D96: Network | H96: Line Connection | L96: Transformation Connection | P96: Total Line
B98: Month | D98: Units Billed | E98: Rate | F98: Amount | H98: Units Billed | I98: Rate | J98: Amount | L98: Units Billed | M98: Rate | N98: Amount | P98: Amount
B100: January | D100: =D24+D43+D62+D81 -> 151270 | E100: =IF(D100<>0,F100/D100,0) -> 3.700563563 | F100: =F24+F43+F62+F81 -> 559784.2502 | H100: =H24+H43+H62+H81 -> 157110.95 | I100: =IF(H100<>0,J100/H100,0) -> 0.8450110601 | J100: =J24+J43+J62+J81 -> 132760.4904 | L100: =L24+L43+L62+L81 -> 157110.95 | M100: =IF(L100<>0,N100/L100,0) -> 1.958796007 | N100: =N24+N43+N62+N81 -> 307748.3015 | P100: =J100+N100 -> 440508.7919
B101: February | D101: =D25+D44+D63+D82 -> 133583 | E101: 3.740409914 | F101: =F25+F44+F63+F82 -> 499655.1775 | H101: =H25+H44+H63+H82 -> 135089.05 | I101: 0.8522802181 | J101: =J25+J44+J63+J82 -> 115133.725 | L101: =L25+L44+L63+L82 -> 135089.05 | M101: 1.97877863 | N101: =N25+N44+N63+N82 -> 267311.3253 | P101: 382445.0503
B102: March | D102: 136419 | E102: 3.739059296 | F102: 510078.7301 | H102: 139164.5 | I102: 0.8512470964 | J102: 118463.3766 | L102: 139164.5 | M102: 1.97593862 | N102: 274980.5101 | P102: 393443.8867
B103: April | D103: 112760 | E103: 3.733438268 | F103: 420982.4991 | H103: 119520.51 | I103: 0.8507115484 | J103: 101677.4781 | L103: 119520.51 | M103: 1.97446642 | N103: 235989.2335 | P103: 337666.7116
B104: May | D104: 130708 | E104: 3.748070374 | F104: 489902.7824 | H104: 131035.72 | I104: 0.8535778503 | J104: 111849.1882 | L104: 131035.72 | M104: 1.982345769 | N104: 259758.1051 | P104: 371607.2933
B105: June | D105: 144672 | E105: 3.732290893 | F105: 539957.9881 | H105: 160765.31 | I105: 0.8515563311 | J105: 136900.7175 | L105: 160765.31 | M105: 1.976788694 | N105: 317799.0472 | P105: 454699.7647
B106: July | D106: 154596 | E106: 3.75762558 | F106: 580913.8842 | H106: 163353.76 | I106: 0.8557108395 | J106: 139783.5831 | L106: 163353.76 | M106: 1.98820927 | N106: 324781.46 | P106: 464565.0431
B107: August | D107: 148684 | E107: 3.752227613 | F107: 557896.2104 | H107: 148800.91 | I107: 0.8545048749 | J107: 127151.103 | L107: 148800.91 | M107: 1.984894122 | N107: 295354.0516 | P107: 422505.1546
B108: September | D108: 165693 | E108: 3.71692813 | F108: 615868.9726 | H108: 171184 | I108: 0.8457231184 | J108: 144774.2663 | L108: 171184 | M108: 1.960753427 | N108: 335649.6146 | P108: 480423.8809
B109: October | D109: 126443 | E109: 3.712014019 | F109: 469358.1886 | H109: 133149 | I109: 0.8461278883 | J109: 112661.0822 | L109: 133149 | M109: 1.961866123 | N109: 261220.5124 | P109: 373881.5946
B110: November | D110: 123219 | E110: 3.747810728 | F110: 461801.4901 | H110: 125805 | I110: 0.8537949469 | J110: 107411.6733 | L110: 125805 | M110: 1.982942559 | N110: 249464.0886 | P110: 356875.7619
B111: December | D111: 123143 | E111: 3.748352528 | F111: 461583.3753 | H111: 127045.29 | I111: 0.853988158 | J111: 108495.1732 | L111: 127045.29 | M111: 1.983473688 | N111: 251990.9899 | P111: 360486.1631
B113: Total | D113: =SUM(D100:D111) -> 1651190 | E113: =IF(D113<>0,F113/D113,0) -> 3.735356651 | F113: =SUM(F100:F111) -> 6167783.549 | H113: =SUM(H100:H111) -> 1712024 | I113: =IF(H113<>0,J113/H113,0) -> 0.8510756023 | J113: =SUM(J100:J111) -> 1457061.857 | L113: =SUM(L100:L111) -> 1712024 | M113: =IF(L113<>0,N113/L113,0) -> 1.97546719 | N113: =SUM(N100:N111) -> 3382047.24 | P113: =SUM(P100:P111) -> 4839109.097
N115: Low Voltage Switchgear Credit (if applicable) | P115: ='5. UTRs and Sub-Transmission'!G95 -> 0
N117: Total including deduction for Low Voltage Switchgear Credit | P117: =P113+P115 -> 4839109.097

Sheet 8. Forecast Wholesale
B13: The purpose of this sheet is to calculate the expected billing when forecasted 2016 Uniform Transmission Rates are applied against historical 2014 transmission units.
B20: IESO | D20: Network | H20: Line Connection | L20: Transformation Connection | P20: Total Line
B22: Month | D22: Units Billed | E22: Rate | F22: Amount | H22: Units Billed | I22: Rate | J22: Amount | L22: Units Billed | M22: Rate | N22: Amount | P22: Amount
B24: January | D24: ='6. Historical Wholesale'!D24 -> 118608 | E24: ='5. UTRs and Sub-Transmission'!I22 -> 3.66 | F24: =D24*E24 -> 434105.28 | H24: ='6. Historical Wholesale'!H24 -> 124449 | I24: ='5. UTRs and Sub-Transmission'!I24 -> 0.87 | J24: =H24*I24 -> 108270.63 | L24: ='6. Historical Wholesale'!L24 -> 124449 | M24: ='5. UTRs and Sub-Transmission'!I26 -> 2.02 | N24: =L24*M24 -> 251386.98 | P24: =J24+N24 -> 359657.61
B25: February | D25: ='6. Historical Wholesale'!D25 -> 119208 | E25: =E24 -> 3.66 | F25: 436301.28 | H25: ='6. Historical Wholesale'!H25 -> 120625 | I25: =I24 -> 0.87 | J25: 104943.75 | L25: ='6. Historical Wholesale'!L25 -> 120625 | M25: =M24 -> 2.02 | N25: 243662.5 | P25: 348606.25
B26: March | D26: ='6. Historical Wholesale'!D26 -> 121238 | E26: 3.66 | F26: 443731.08 | H26: ='6. Historical Wholesale'!H26 -> 122270 | I26: 0.87 | J26: 106374.9 | L26: ='6. Historical Wholesale'!L26 -> 122270 | M26: 2.02 | N26: 246985.4 | P26: 353360.3
B27: April | D27: ='6. Historical Wholesale'!D27 -> 98489 | E27: 3.66 | F27: 360469.74 | H27: ='6. Historical Wholesale'!H27 -> 104123 | I27: 0.87 | J27: 90587.01 | L27: ='6. Historical Wholesale'!L27 -> 104123 | M27: 2.02 | N27: 210328.46 | P27: 300915.47
B28: May | D28: ='6. Historical Wholesale'!D28 -> 119364 | E28: 3.66 | F28: 436872.24 | H28: ='6. Historical Wholesale'!H28 -> 119364 | I28: 0.87 | J28: 103846.68 | L28: ='6. Historical Wholesale'!L28 -> 119364 | M28: 2.02 | N28: 241115.28 | P28: 344961.96
B29: June | D29: ='6. Historical Wholesale'!D29 -> 125911 | E29: 3.66 | F29: 460834.26 | H29: ='6. Historical Wholesale'!H29 -> 141938 | I29: 0.87 | J29: 123486.06 | L29: ='6. Historical Wholesale'!L29 -> 141938 | M29: 2.02 | N29: 286714.76 | P29: 410200.82
B30: July | D30: ='6. Historical Wholesale'!D30 -> 145194 | E30: 3.66 | F30: 531410.04 | H30: ='6. Historical Wholesale'!H30 -> 153636 | I30: 0.87 | J30: 133663.32 | L30: ='6. Historical Wholesale'!L30 -> 153636 | M30: 2.02 | N30: 310344.72 | P30: 444008.04
B31: August | D31: ='6. Historical Wholesale'!D31 -> 137460 | E31: 3.66 | F31: 503103.6 | H31: ='6. Historical Wholesale'!H31 -> 137460 | I31: 0.87 | J31: 119590.2 | L31: ='6. Historical Wholesale'!L31 -> 137460 | M31: 2.02 | N31: 277669.2 | P31: 397259.4
B32: September | D32: ='6. Historical Wholesale'!D32 -> 137287 | E32: 3.66 | F32: 502470.42 | H32: ='6. Historical Wholesale'!H32 -> 137287 | I32: 0.87 | J32: 119439.69 | L32: ='6. Historical Wholesale'!L32 -> 137287 | M32: 2.02 | N32: 277319.74 | P32: 396759.43
B33: October | D33: ='6. Historical Wholesale'!D33 -> 103077 | E33: 3.66 | F33: 377261.82 | H33: ='6. Historical Wholesale'!H33 -> 107531 | I33: 0.87 | J33: 93551.97 | L33: ='6. Historical Wholesale'!L33 -> 107531 | M33: 2.02 | N33: 217212.62 | P33: 310764.59
B34: November | D34: ='6. Historical Wholesale'!D34 -> 112438 | E34: 3.66 | F34: 411523.08 | H34: ='6. Historical Wholesale'!H34 -> 114978 | I34: 0.87 | J34: 100030.86 | L34: ='6. Historical Wholesale'!L34 -> 114978 | M34: 2.02 | N34: 232255.56 | P34: 332286.42
B35: December | D35: ='6. Historical Wholesale'!D35 -> 112550 | E35: 3.66 | F35: 411933 | H35: ='6. Historical Wholesale'!H35 -> 116452 | I35: 0.87 | J35: 101313.24 | L35: ='6. Historical Wholesale'!L35 -> 116452 | M35: 2.02 | N35: 235233.04 | P35: 336546.28
B37: Total | D37: =SUM(D24:D35) -> 1450824 | E37: =IF(D37<>0,F37/D37,0) -> 3.66 | F37: =SUM(F24:F35) -> 5310015.84 | H37: =SUM(H24:H35) -> 1500113 | I37: =IF(H37<>0,J37/H37,0) -> 0.87 | J37: =SUM(J24:J35) -> 1305098.31 | L37: =SUM(L24:L35) -> 1500113 | M37: =IF(L37<>0,N37/L37,0) -> 2.02 | N37: =SUM(N24:N35) -> 3030228.26 | P37: =SUM(P24:P35) -> 4335326.57
B39: Hydro One | D39: Network | H39: Line Connection | L39: Transformation Connection | P39: Total Line
B41: Month | D41: Units Billed | E41: Rate | F41: Amount | H41: Units Billed | I41: Rate | J41: Amount | L41: Units Billed | M41: Rate | N41: Amount | P41: Amount
B43: January | D43: ='6. Historical Wholesale'!D43 -> 32662 | E43: ='5. UTRs and Sub-Transmission'!I35+'5. UTRs and Sub-Transmission'!I79 -> 3.3396 | F43: =D43*E43 -> 109078.0152 | H43: ='6. Historical Wholesale'!H43 -> 32661.95 | I43: ='5. UTRs and Sub-Transmission'!I37+'5. UTRs and Sub-Transmission'!I81 -> 0.7791 | J43: =H43*I43 -> 25446.92524 | L43: ='6. Historical Wholesale'!L43 -> 32661.95 | M43: ='5. UTRs and Sub-Transmission'!I39 -> 1.7713 | N43: =L43*M43 -> 57854.11203 | P43: =J43+N43 -> 83301.03728
B44: February | D44: ='6. Historical Wholesale'!D44 -> 14375 | E44: =E43 -> 3.3396 | F44: 48006.75 | H44: ='6. Historical Wholesale'!H44 -> 14464.05 | I44: =I43 -> 0.7791 | J44: 11268.94135 | L44: ='6. Historical Wholesale'!L44 -> 14464.05 | M44: =M43 -> 1.7713 | N44: 25620.17176 | P44: 36889.11312
B45: March | D45: ='6. Historical Wholesale'!D45 -> 15181 | E45: 3.3396 | F45: 50698.4676 | H45: ='6. Historical Wholesale'!H45 -> 16894.5 | I45: 0.7791 | J45: 13162.50495 | L45: ='6. Historical Wholesale'!L45 -> 16894.5 | M45: 1.7713 | N45: 29925.22785 | P45: 43087.7328
B46: April | D46: ='6. Historical Wholesale'!D46 -> 14271 | E46: 3.3396 | F46: 47659.4316 | H46: ='6. Historical Wholesale'!H46 -> 15397.51 | I46: 0.7791 | J46: 11996.20004 | L46: ='6. Historical Wholesale'!L46 -> 15397.51 | M46: 1.7713 | N46: 27273.60946 | P46: 39269.8095
B47: May | D47: ='6. Historical Wholesale'!D47 -> 11344 | E47: 3.3396 | F47: 37884.4224 | H47: ='6. Historical Wholesale'!H47 -> 11671.72 | I47: 0.7791 | J47: 9093.437052 | L47: ='6. Historical Wholesale'!L47 -> 11671.72 | M47: 1.7713 | N47: 20674.11764 | P47: 29767.55469
B48: June | D48: ='6. Historical Wholesale'!D48 -> 18761 | E48: 3.3396 | F48: 62654.2356 | H48: ='6. Historical Wholesale'!H48 -> 18827.31 | I48: 0.7791 | J48: 14668.35722 | L48: ='6. Historical Wholesale'!L48 -> 18827.31 | M48: 1.7713 | N48: 33348.8142 | P48: 48017.17142
B49: July | D49: ='6. Historical Wholesale'!D49 -> 9402 | E49: 3.3396 | F49: 31398.9192 | H49: ='6. Historical Wholesale'!H49 -> 9717.76 | I49: 0.7791 | J49: 7571.106816 | L49: ='6. Historical Wholesale'!L49 -> 9717.76 | M49: 1.7713 | N49: 17213.06829 | P49: 24784.1751
B50: August | D50: ='6. Historical Wholesale'!D50 -> 11224 | E50: 3.3396 | F50: 37483.6704 | H50: ='6. Historical Wholesale'!H50 -> 11340.91 | I50: 0.7791 | J50: 8835.702981 | L50: ='6. Historical Wholesale'!L50 -> 11340.91 | M50: 1.7713 | N50: 20088.15388 | P50: 28923.85686
B51: September | D51: ='6. Historical Wholesale'!D51 -> 28406 | E51: 3.3396 | F51: 94864.6776 | H51: ='6. Historical Wholesale'!H51 -> 33897 | I51: 0.7791 | J51: 26409.1527 | L51: ='6. Historical Wholesale'!L51 -> 33897 | M51: 1.7713 | N51: 60041.7561 | P51: 86450.9088
B52: October | D52: ='6. Historical Wholesale'!D52 -> 23366 | E52: 3.3396 | F52: 78033.0936 | H52: ='6. Historical Wholesale'!H52 -> 25618 | I52: 0.7791 | J52: 19958.9838 | L52: ='6. Historical Wholesale'!L52 -> 25618 | M52: 1.7713 | N52: 45377.1634 | P52: 65336.1472
B53: November | D53: ='6. Historical Wholesale'!D53 -> 10781 | E53: 3.3396 | F53: 36004.2276 | H53: ='6. Historical Wholesale'!H53 -> 10827 | I53: 0.7791 | J53: 8435.3157 | L53: ='6. Historical Wholesale'!L53 -> 10827 | M53: 1.7713 | N53: 19177.8651 | P53: 27613.1808
B54: December | D54: ='6. Historical Wholesale'!D54 -> 10593 | E54: 3.3396 | F54: 35376.3828 | H54: ='6. Historical Wholesale'!H54 -> 10593.29 | I54: 0.7791 | J54: 8253.232239 | L54: ='6. Historical Wholesale'!L54 -> 10593.29 | M54: 1.7713 | N54: 18763.89458 | P54: 27017.12682
B56: Total | D56: =SUM(D43:D54) -> 200366 | E56: =IF(D56<>0,F56/D56,0) -> 3.3396 | F56: =SUM(F43:F54) -> 669142.2936 | H56: =SUM(H43:H54) -> 211911 | I56: =IF(H56<>0,J56/H56,0) -> 0.7791 | J56: =SUM(J43:J54) -> 165099.8601 | L56: =SUM(L43:L54) -> 211911 | M56: =IF(L56<>0,N56/L56,0) -> 1.7713 | N56: =SUM(N43:N54) -> 375357.9543 | P56: =SUM(P43:P54) -> 540457.8144
B58: ='6. Historical Wholesale'!B58 -> Add Extra Host Here (I) | D58: Network | H58: Line Connection | L58: Transformation Connection | P58: Total Line
B60: Month | D60: Units Billed | E60: Rate | F60: Amount | H60: Units Billed | I60: Rate | J60: Amount | L60: Units Billed | M60: Rate | N60: Amount | P60: Amount
B62: January | D62: ='6. Historical Wholesale'!D62 -> 0 | E62: ='5. UTRs and Sub-Transmission'!I50 -> 0 | F62: =D62*E62 -> 0 | H62: ='6. Historical Wholesale'!H62 -> 0 | I62: ='5. UTRs and Sub-Transmission'!I52 -> 0 | J62: =H62*I62 -> 0 | L62: ='6. Historical Wholesale'!L62 -> 0 | M62: ='5. UTRs and Sub-Transmission'!I54 -> 0 | N62: =L62*M62 -> 0 | P62: =J62+N62 -> 0
B63: February | D63: ='6. Historical Wholesale'!D63 -> 0 | E63: =E62 -> 0 | F63: 0 | H63: ='6. Historical Wholesale'!H63 -> 0 | I63: =I62 -> 0 | J63: 0 | L63: ='6. Historical Wholesale'!L63 -> 0 | M63: =M62 -> 0 | N63: 0 | P63: 0
B64: March | D64: ='6. Historical Wholesale'!D64 -> 0 | E64: 0 | F64: 0 | H64: ='6. Historical Wholesale'!H64 -> 0 | I64: 0 | J64: 0 | L64: ='6. Historical Wholesale'!L64 -> 0 | M64: 0 | N64: 0 | P64: 0
B65: April | D65: ='6. Historical Wholesale'!D65 -> 0 | E65: 0 | F65: 0 | H65: ='6. Historical Wholesale'!H65 -> 0 | I65: 0 | J65: 0 | L65: ='6. Historical Wholesale'!L65 -> 0 | M65: 0 | N65: 0 | P65: 0
B66: May | D66: ='6. Historical Wholesale'!D66 -> 0 | E66: 0 | F66: 0 | H66: ='6. Historical Wholesale'!H66 -> 0 | I66: 0 | J66: 0 | L66: ='6. Historical Wholesale'!L66 -> 0 | M66: 0 | N66: 0 | P66: 0
B67: June | D67: ='6. Historical Wholesale'!D67 -> 0 | E67: 0 | F67: 0 | H67: ='6. Historical Wholesale'!H67 -> 0 | I67: 0 | J67: 0 | L67: ='6. Historical Wholesale'!L67 -> 0 | M67: 0 | N67: 0 | P67: 0
B68: July | D68: ='6. Historical Wholesale'!D68 -> 0 | E68: 0 | F68: 0 | H68: ='6. Historical Wholesale'!H68 -> 0 | I68: 0 | J68: 0 | L68: ='6. Historical Wholesale'!L68 -> 0 | M68: 0 | N68: 0 | P68: 0
B69: August | D69: ='6. Historical Wholesale'!D69 -> 0 | E69: 0 | F69: 0 | H69: ='6. Historical Wholesale'!H69 -> 0 | I69: 0 | J69: 0 | L69: ='6. Historical Wholesale'!L69 -> 0 | M69: 0 | N69: 0 | P69: 0
B70: September | D70: ='6. Historical Wholesale'!D70 -> 0 | E70: 0 | F70: 0 | H70: ='6. Historical Wholesale'!H70 -> 0 | I70: 0 | J70: 0 | L70: ='6. Historical Wholesale'!L70 -> 0 | M70: 0 | N70: 0 | P70: 0
B71: October | D71: ='6. Historical Wholesale'!D71 -> 0 | E71: 0 | F71: 0 | H71: ='6. Historical Wholesale'!H71 -> 0 | I71: 0 | J71: 0 | L71: ='6. Historical Wholesale'!L71 -> 0 | M71: 0 | N71: 0 | P71: 0
B72: November | D72: ='6. Historical Wholesale'!D72 -> 0 | E72: 0 | F72: 0 | H72: ='6. Historical Wholesale'!H72 -> 0 | I72: 0 | J72: 0 | L72: ='6. Historical Wholesale'!L72 -> 0 | M72: 0 | N72: 0 | P72: 0
B73: December | D73: ='6. Historical Wholesale'!D73 -> 0 | E73: 0 | F73: 0 | H73: ='6. Historical Wholesale'!H73 -> 0 | I73: 0 | J73: 0 | L73: ='6. Historical Wholesale'!L73 -> 0 | M73: 0 | N73: 0 | P73: 0
B75: Total | D75: =SUM(D62:D73) -> 0 | E75: =IF(D75<>0,F75/D75,0) -> 0 | F75: =SUM(F62:F73) -> 0 | H75: =SUM(H62:H73) -> 0 | I75: =IF(H75<>0,J75/H75,0) -> 0 | J75: =SUM(J62:J73) -> 0 | L75: =SUM(L62:L73) -> 0 | M75: =IF(L75<>0,N75/L75,0) -> 0 | N75: =SUM(N62:N73) -> 0 | P75: =SUM(P62:P73) -> 0
B77: ='6. Historical Wholesale'!B77 -> Add Extra Host Here (II) | D77: Network | H77: Line Connection | L77: Transformation Connection | P77: Total Line
B79: Month | D79: Units Billed | E79: Rate | F79: Amount | H79: Units Billed | I79: Rate | J79: Amount | L79: Units Billed | M79: Rate | N79: Amount | P79: Amount
B81: January | D81: ='6. Historical Wholesale'!D81 -> 0 | E81: ='5. UTRs and Sub-Transmission'!I65 -> 0 | F81: =D81*E81 -> 0 | H81: ='6. Historical Wholesale'!H81 -> 0 | I81: ='5. UTRs and Sub-Transmission'!I67 -> 0 | J81: =H81*I81 -> 0 | L81: ='6. Historical Wholesale'!L81 -> 0 | M81: ='5. UTRs and Sub-Transmission'!I69 -> 0 | N81: =L81*M81 -> 0 | P81: =J81+N81 -> 0
B82: February | D82: ='6. Historical Wholesale'!D82 -> 0 | E82: =E81 -> 0 | F82: 0 | H82: ='6. Historical Wholesale'!H82 -> 0 | I82: =I81 -> 0 | J82: 0 | L82: ='6. Historical Wholesale'!L82 -> 0 | M82: =M81 -> 0 | N82: 0 | P82: 0
B83: March | D83: ='6. Historical Wholesale'!D83 -> 0 | E83: 0 | F83: 0 | H83: ='6. Historical Wholesale'!H83 -> 0 | I83: 0 | J83: 0 | L83: ='6. Historical Wholesale'!L83 -> 0 | M83: 0 | N83: 0 | P83: 0
B84: April | D84: ='6. Historical Wholesale'!D84 -> 0 | E84: 0 | F84: 0 | H84: ='6. Historical Wholesale'!H84 -> 0 | I84: 0 | J84: 0 | L84: ='6. Historical Wholesale'!L84 -> 0 | M84: 0 | N84: 0 | P84: 0
B85: May | D85: ='6. Historical Wholesale'!D85 -> 0 | E85: 0 | F85: 0 | H85: ='6. Historical Wholesale'!H85 -> 0 | I85: 0 | J85: 0 | L85: ='6. Historical Wholesale'!L85 -> 0 | M85: 0 | N85: 0 | P85: 0
B86: June | D86: ='6. Historical Wholesale'!D86 -> 0 | E86: 0 | F86: 0 | H86: ='6. Historical Wholesale'!H86 -> 0 | I86: 0 | J86: 0 | L86: ='6. Historical Wholesale'!L86 -> 0 | M86: 0 | N86: 0 | P86: 0
B87: July | D87: ='6. Historical Wholesale'!D87 -> 0 | E87: 0 | F87: 0 | H87: ='6. Historical Wholesale'!H87 -> 0 | I87: 0 | J87: 0 | L87: ='6. Historical Wholesale'!L87 -> 0 | M87: 0 | N87: 0 | P87: 0
B88: August | D88: ='6. Historical Wholesale'!D88 -> 0 | E88: 0 | F88: 0 | H88: ='6. Historical Wholesale'!H88 -> 0 | I88: 0 | J88: 0 | L88: ='6. Historical Wholesale'!L88 -> 0 | M88: 0 | N88: 0 | P88: 0
B89: September | D89: ='6. Historical Wholesale'!D89 -> 0 | E89: 0 | F89: 0 | H89: ='6. Historical Wholesale'!H89 -> 0 | I89: 0 | J89: 0 | L89: ='6. Historical Wholesale'!L89 -> 0 | M89: 0 | N89: 0 | P89: 0
B90: October | D90: ='6. Historical Wholesale'!D90 -> 0 | E90: 0 | F90: 0 | H90: ='6. Historical Wholesale'!H90 -> 0 | I90: 0 | J90: 0 | L90: ='6. Historical Wholesale'!L90 -> 0 | M90: 0 | N90: 0 | P90: 0
B91: November | D91: ='6. Historical Wholesale'!D91 -> 0 | E91: 0 | F91: 0 | H91: ='6. Historical Wholesale'!H91 -> 0 | I91: 0 | J91: 0 | L91: ='6. Historical Wholesale'!L91 -> 0 | M91: 0 | N91: 0 | P91: 0
B92: December | D92: ='6. Historical Wholesale'!D92 -> 0 | E92: 0 | F92: 0 | H92: ='6. Historical Wholesale'!H92 -> 0 | I92: 0 | J92: 0 | L92: ='6. Historical Wholesale'!L92 -> 0 | M92: 0 | N92: 0 | P92: 0
B94: Total | D94: =SUM(D81:D92) -> 0 | E94: =IF(D94<>0,F94/D94,0) -> 0 | F94: =SUM(F81:F92) -> 0 | H94: =SUM(H81:H92) -> 0 | I94: =IF(H94<>0,J94/H94,0) -> 0 | J94: =SUM(J81:J92) -> 0 | L94: =SUM(L81:L92) -> 0 | M94: =IF(L94<>0,N94/L94,0) -> 0 | N94: =SUM(N81:N92) -> 0 | P94: =SUM(P81:P92) -> 0
B96: Total | D96: Network | H96: Line Connection | L96: Transformation Connection | P96: Total Line
B98: Month | D98: Units Billed | E98: Rate | F98: Amount | H98: Units Billed | I98: Rate | J98: Amount | L98: Units Billed | M98: Rate | N98: Amount | P98: Amount
B100: January | D100: =D24+D43+D62+D81 -> 151270 | E100: =IF(D100<>0,F100/D100,0) -> 3.590819695 | F100: =F24+F43+F62+F81 -> 543183.2952 | H100: =H24+H43+H62+H81 -> 157110.95 | I100: =IF(H100<>0,J100/H100,0) -> 0.8511027096 | J100: =J24+J43+J62+J81 -> 133717.5552 | L100: =L24+L43+L62+L81 -> 157110.95 | M100: =IF(L100<>0,N100/L100,0) -> 1.968297512 | N100: =N24+N43+N62+N81 -> 309241.092 | P100: =J100+N100 -> 442958.6473
B101: February | D101: =D25+D44+D63+D82 -> 133583 | E101: 3.625521436 | F101: 484308.03 | H101: =H25+H44+H63+H82 -> 135089.05 | I101: 0.860267293 | J101: =J25+J44+J63+J82 -> 116212.6914 | L101: =L25+L44+L63+L82 -> 135089.05 | M101: 1.993371571 | N101: =N25+N44+N63+N82 -> 269282.6718 | P101: 385495.3631
B102: March | D102: 136419 | E102: 3.624345198 | F102: 494429.5476 | H102: =H26+H45+H64+H83 -> 139164.5 | I102: 0.8589647859 | J102: =J26+J45+J64+J83 -> 119537.4049 | L102: =L26+L45+L64+L83 -> 139164.5 | M102: 1.989807946 | N102: =N26+N45+N64+N83 -> 276910.6278 | P102: 396448.0328
B103: April | D103: 112760 | E103: 3.619449908 | F103: 408129.1716 | H103: =H27+H46+H65+H84 -> 119520.51 | I103: 0.8582895943 | J103: =J27+J46+J65+J84 -> 102583.21 | L103: =L27+L46+L65+L84 -> 119520.51 | M103: 1.987960639 | N103: =N27+N46+N65+N84 -> 237602.0695 | P103: 340185.2795
B104: May | D104: 130708 | E104: 3.632192845 | F104: 474756.6624 | H104: =H28+H47+H66+H85 -> 131035.72 | I104: 0.8619032814 | J104: =J28+J47+J66+J85 -> 112940.1171 | L104: =L28+L47+L66+L85 -> 131035.72 | M104: 1.997847592 | N104: =N28+N47+N66+N85 -> 261789.3976 | P104: 374729.5147
B105: June | D105: 144672 | E105: 3.618450672 | F105: 523488.4956 | H105: =H29+H48+H67+H86 -> 160765.31 | I105: 0.8593546532 | J105: =J29+J48+J67+J86 -> 138154.4172 | L105: =L29+L48+L67+L86 -> 160765.31 | M105: 1.990874612 | N105: =N29+N48+N67+N86 -> 320063.5742 | P105: 458217.9914
B106: July | D106: 154596 | E106: 3.640514368 | F106: 562808.9592 | H106: =H30+H49+H68+H87 -> 163353.76 | I106: 0.8645924454 | J106: =J30+J49+J68+J87 -> 141234.4268 | L106: =L30+L49+L68+L87 -> 163353.76 | M106: 2.005205073 | N106: =N30+N49+N68+N87 -> 327557.7883 | P106: 468792.2151
B107: August | D107: 148684 | E107: 3.635813338 | F107: 540587.2704 | H107: =H31+H50+H69+H88 -> 148800.91 | I107: 0.8630720268 | J107: =J31+J50+J69+J88 -> 128425.903 | L107: =L31+L50+L69+L88 -> 148800.91 | M107: 2.001045248 | N107: =N31+N50+N69+N88 -> 297757.3539 | P107: 426183.2569
B108: September | D108: 165693 | E108: 3.605071413 | F108: 597335.0976 | H108: =H32+H51+H70+H89 -> 171184 | I108: 0.8520004364 | J108: =J32+J51+J70+J89 -> 145848.8427 | L108: =L32+L51+L70+L89 -> 171184 | M108: 1.970753669 | N108: =N32+N51+N70+N89 -> 337361.4961 | P108: 483210.3388
B109: October | D109: 126443 | E109: 3.600791769 | F109: 455294.9136 | H109: =H33+H52+H71+H90 -> 133149 | I109: 0.8525107496 | J109: =J33+J52+J71+J90 -> 113510.9538 | L109: =L33+L52+L71+L90 -> 133149 | M109: 1.972149873 | N109: =N33+N52+N71+N90 -> 262589.7834 | P109: 376100.7372
B110: November | D110: 123219 | E110: 3.631966723 | F110: 447527.3076 | H110: =H34+H53+H72+H91 -> 125805 | I110: 0.8621769858 | J110: =J34+J53+J72+J91 -> 108466.1757 | L110: =L34+L53+L72+L91 -> 125805 | M110: 1.99859644 | N110: =N34+N53+N72+N91 -> 251433.4251 | P110: 359899.6008
B111: December | D111: 123143 | E111: 3.63243857 | F111: 447309.3828 | H111: =H35+H54+H73+H92 -> 127045.29 | I111: 0.8624205765 | J111: =J35+J54+J73+J92 -> 109566.4722 | L111: =L35+L54+L73+L92 -> 127045.29 | M111: 1.999262897 | N111: =N35+N54+N73+N92 -> 253996.9346 | P111: 363563.4068
B113: Total | D113: =SUM(D100:D111) -> 1651190 | E113: =IF(D113<>0,F113/D113,0) -> 3.621120606 | F113: =SUM(F100:F111) -> 5979158.134 | H113: =SUM(H100:H111) -> 1712024 | I113: =IF(H113<>0,J113/H113,0) -> 0.8587485748 | J113: =SUM(J100:J111) -> 1470198.17 | L113: =SUM(L100:L111) -> 1712024 | M113: =IF(L113<>0,N113/L113,0) -> 1.989216398 | N113: =SUM(N100:N111) -> 3405586.214 | P113: =SUM(P100:P111) -> 4875784.384
N115: Low Voltage Switchgear Credit (if applicable) | P115: ='5. UTRs and Sub-Transmission'!I95 -> 0
N117: Total including deduction for Low Voltage Switchgear Credit | P117: =P113+P115 -> 4875784.384

Sheet 9. RTSR Rates to Forecast
A13: The purpose of this sheet is to re-align the current RTS Network Rates to recover current wholesale network costs.
A15: Rate Class | B15: Rate Description | C15: Unit | D15: Current RTSR-Network | E15: Loss Adjusted Billed kWh | F15: Billed kW | G15: Billed Amount | H15: Billed Amount % | I15: Current Wholesale Billing | J15: Adjusted RTSR Network
A17: Residential | B17: RTSR - Network | C17: kWh | D17: 0.0079 | E17: 301111412.8 | G17: =ROUND(D17*E17, 2) -> 2378780.16 | H17: =G17/6482646.66 -> 0.3669458301 | I17: =H17*total_current_wholesale_network -> 2263242.454 | J17: =IF(ISERROR(I17/E17), 0, I17/E17) -> 0.007516295823
A18: General Service Less Than 50 kW | B18: RTSR - Network | C18: kWh | D18: 0.0073 | E18: 91583943.26 | G18: =ROUND(D18*E18, 2) -> 668562.79 | H18: 0.1031311477 | I18: 636090.596 | J18: =IF(ISERROR(I18/E18), 0, I18/E18) -> 0.006945437959
A19: General Service 50 to 999 kW | B19: RTSR - Network | C19: kW | D19: 3.2739 | F19: 523668 | G19: =ROUND(D19*F19, 2) -> 1714436.67 | H19: 0.2644655432 | I19: 1631166.226 | J19: =IF(ISERROR(I19/F19), 0, I19/F19) -> 3.114886199
A20: General Service 1,000 to 4,999 kW | B20: RTSR - Network | C20: kW | D20: 3.2199 | F20: 242504 | G20: =ROUND(D20*F20, 2) -> 780838.63 | H20: 0.1204505923 | I20: 742913.1817 | J20: =IF(ISERROR(I20/F20), 0, I20/F20) -> 3.06350898
A21: Large Use | B21: RTSR - Network | C21: kW | D21: 3.4867 | F21: 253601 | G21: =ROUND(D21*F21, 2) -> 884230.61 | H21: 0.1363996306 | I21: 841283.3979 | J21: =IF(ISERROR(I21/F21), 0, I21/F21) -> 3.317350475
A22: Sentinel Lighting | B22: RTSR - Network | C22: kW | D22: 2.2287 | F22: 419 | G22: =ROUND(D22*F22, 2) -> 933.83 | H22: 0.0001440507325 | I22: 888.4737382 | J22: =IF(ISERROR(I22/F22), 0, I22/F22) -> 2.120462382
A23: Street Lighting | B23: RTSR - Network | C23: kW | D23: 2.2173 | F23: 20173 | G23: =ROUND(D23*F23, 2) -> 44729.59 | H23: 0.006899896346 | I23: 42557.06717 | J23: =IF(ISERROR(I23/F23), 0, I23/F23) -> 2.109605273
A24: Unmetered Scattered Load | B24: RTSR - Network | C24: kWh | D24: 0.0073 | E24: 1388270.71 | G24: =ROUND(D24*E24, 2) -> 10134.38 | H24: 0.00156330902 | I24: 9642.151658 | J24: =IF(ISERROR(I24/E24), 0, I24/E24) -> 0.00694544053
A26: The purpose of this table is to re-align the current RTS Connection Rates to recover current wholesale connection costs.
A27: Rate Class | B27: Rate Description | C27: Unit | D27: Current RTSR-Connection | E27: Loss Adjusted Billed kWh | F27: Billed kW | G27: Billed Amount | H27: Billed Amount % | I27: Current Wholesale Billing | J27: Adjusted RTSR-Connection
A29: Residential | B29: RTSR - Connection | C29: kWh | D29: 0.006 | E29: 301111412.8 | G29: =ROUND(D29*E29, 2) -> 1806668.48 | H29: =G29/4897707.45 -> 0.3688804402 | I29: =H29*Total_Current_Wholesale_Lineplus -> 1785052.694 | J29: =IF(ISERROR(I29/E29), 0, I29/E29) -> 0.005928213338
A30: General Service Less Than 50 kW | B30: RTSR - Connection | C30: kWh | D30: 0.0053 | E30: 91583943.26 | G30: =ROUND(D30*E30, 2) -> 485394.9 | H30: 0.09910655239 | I30: 479587.4192 | J30: =IF(ISERROR(I30/E30), 0, I30/E30) -> 0.005236588447
A31: General Service 50 to 999 kW | B31: RTSR - Connection | C31: kW | D31: 2.4627 | F31: 523668 | G31: =ROUND(D31*F31, 2) -> 1289637.18 | H31: 0.2633144575 | I31: 1274207.386 | J31: =IF(ISERROR(I31/F31), 0, I31/F31) -> 2.433235154
A32: General Service 1,000 to 4,999 kW | B32: RTSR - Connection | C32: kW | D32: 2.4225 | F32: 242504 | G32: =ROUND(D32*F32, 2) -> 587465.94 | H32: 0.1199471275 | I32: 580437.2358 | J32: =IF(ISERROR(I32/F32), 0, I32/F32) -> 2.393516131
A33: Large Use | B33: RTSR - Connection | C33: kW | D33: 2.7092 | F33: 253601 | G33: =ROUND(D33*F33, 2) -> 687055.83 | H33: 0.1402811085 | I33: 678835.588 | J33: =IF(ISERROR(I33/F33), 0, I33/F33) -> 2.676785928
A34: Sentinel Lighting | B34: RTSR - Connection | C34: kW | D34: 1.6914 | F34: 419 | G34: =ROUND(D34*F34, 2) -> 708.7 | H34: 0.0001447003536 | I34: 700.2207976 | J34: =IF(ISERROR(I34/F34), 0, I34/F34) -> 1.671171355
A35: Street Lighting | B35: RTSR - Connection | C35: kW | D35: 1.6566 | F35: 20173 | G35: =ROUND(D35*F35, 2) -> 33418.59 | H35: 0.006823312813 | I35: 33018.75511 | J35: =IF(ISERROR(I35/F35), 0, I35/F35) -> 1.636779612
A36: Unmetered Scattered Load | B36: RTSR - Connection | C36: kWh | D36: 0.0053 | E36: 1388270.71 | G36: =ROUND(D36*E36, 2) -> 7357.83 | H36: 0.001502300837 | I36: 7269.797645 | J36: =IF(ISERROR(I36/E36), 0, I36/E36) -> 0.005236585049
A38: The purpose of this table is to update the re-aligned RTS Network Rates to recover future wholesale network costs.
A39: Rate Class | B39: Rate Description | C39: Unit | D39: Adjusted RTSR-Network | E39: Loss Adjusted Billed kWh | F39: Billed kW | G39: Billed Amount | H39: Billed Amount % | I39: Current Wholesale Billing | J39: Proposed RTSR-Network
A41: Residential | B41: RTSR - Network | C41: kWh | D41: 0.007516295823 | E41: 301111412.8 | G41: =IF(ISERROR(D41*E41), 0, ROUND(D41*E41, 2)) -> 2263242.45 | H41: =G41/6167783.55 -> 0.3669458293 | I41: =H41*forecast_wholesale_network -> 2194027.14 | J41: =IF(ISERROR(I41/E41), 0, I41/E41) -> 0.007286429697
A42: General Service Less Than 50 kW | B42: RTSR - Network | C42: kWh | D42: 0.006945437959 | E42: 91583943.26 | G42: =IF(ISERROR(D42*E42), 0, ROUND(D42*E42, 2)) -> 636090.6 | H42: 0.1031311483 | I42: 616637.4442 | J42: =IF(ISERROR(I42/E42), 0, I42/E42) -> 0.006733030074
A43: General Service 50 to 999 kW | B43: RTSR - Network | C43: kW | D43: 3.114886199 | F43: 523668 | G43: =ROUND(D43*F43, 2) -> 1631166.23 | H43: 0.2644655437 | I43: 1581281.307 | J43: =IF(ISERROR(I43/F43), 0, I43/F43) -> 3.019625615
A44: General Service 1,000 to 4,999 kW | B44: RTSR - Network | C44: kW | D44: 3.06350898 | F44: 242504 | G44: =ROUND(D44*F44, 2) -> 742913.18 | H44: 0.120450592 | I44: 720193.1369 | J44: =IF(ISERROR(I44/F44), 0, I44/F44) -> 2.969819619
A45: Large Use | B45: RTSR - Network | C45: kW | D45: 3.317350475 | F45: 253601 | G45: =ROUND(D45*F45, 2) -> 841283.4 | H45: 0.136399631 | I45: 815554.9628 | J45: =IF(ISERROR(I45/F45), 0, I45/F45) -> 3.215898056
A46: Sentinel Lighting | B46: RTSR - Network | C46: kW | D46: 2.120462382 | F46: 419 | G46: =ROUND(D46*F46, 2) -> 888.47 | H46: 0.0001440501264 | I46: 861.2984849 | J46: =IF(ISERROR(I46/F46), 0, I46/F46) -> 2.055604976
A47: Street Lighting | B47: RTSR - Network | C47: kW | D47: 2.109605273 | F47: 20173 | G47: =ROUND(D47*F47, 2) -> 42557.07 | H47: 0.006899896803 | I47: 41255.57409 | J47: =IF(ISERROR(I47/F47), 0, I47/F47) -> 2.045088687
A48: Unmetered Scattered Load | B48: RTSR - Network | C48: kWh | D48: 0.00694544053 | E48: 1388270.71 | G48: =IF(ISERROR(D48*E48), 0, ROUND(D48*E48, 2)) -> 9642.15 | H48: 0.001563308751 | I48: 9347.270236 | J48: =IF(ISERROR(I48/E48), 0, I48/E48) -> 0.006733031366
A50: The purpose of this table is to update the re-aligned RTS Connection Rates to recover future wholesale connection costs.
A51: Rate Class | B51: Rate Description | C51: Unit | D51: Adjusted RTSR-Connection | E51: Loss Adjusted Billed kWh | F51: Billed kW | G51: Billed Amount | H51: Billed Amount % | I51: Current Wholesale Billing | J51: Proposed RTSR-Connection
A53: Residential | B53: RTSR - Connection | C53: kWh | D53: 0.005928213338 | E53: 301111412.8 | G53: =ROUND(D53*E53, 2) -> 1785052.69 | H53: =G53/4839109.11 -> 0.3688804384 | I53: =H53*forecast_wholesale_lineplus -> 1798581.481 | J53: =IF(ISERROR(I53/E53), 0, I53/E53) -> 0.005973142847
A54: General Service Less Than 50 kW | B54: RTSR - Connection | C54: kWh | D54: 0.005236588447 | E54: 91583943.26 | G54: =ROUND(D54*E54, 2) -> 479587.42 | H54: 0.09910655228 | I54: 483222.18 | J54: =IF(ISERROR(I54/E54), 0, I54/E54) -> 0.005276276199
A55: General Service 50 to 999 kW | B55: RTSR - Connection | C55: kW | D55: 2.433235154 | F55: 523668 | G55: =ROUND(D55*F55, 2) -> 1274207.39 | H55: 0.2633144575 | I55: 1283864.52 | J55: =IF(ISERROR(I55/F55), 0, I55/F55) -> 2.451676482
A56: General Service 1,000 to 4,999 kW | B56: RTSR - Connection | C56: kW | D56: 2.393516131 | F56: 242504 | G56: =ROUND(D56*F56, 2) -> 580437.24 | H56: 0.119947128 | I56: 584836.3338 | J56: =IF(ISERROR(I56/F56), 0, I56/F56) -> 2.411656442
A57: Large Use | B57: RTSR - Connection | C57: kW | D57: 2.676785928 | F57: 253601 | G57: =ROUND(D57*F57, 2) -> 678835.59 | H57: 0.1402811085 | I57: 683980.4381 | J57: =IF(ISERROR(I57/F57), 0, I57/F57) -> 2.697073111
A58: Sentinel Lighting | B58: RTSR - Connection | C58: kW | D58: 1.671171355 | F58: 419 | G58: =ROUND(D58*F58, 2) -> 700.22 | H58: 0.0001447001884 | I58: 705.5269191 | J58: =IF(ISERROR(I58/F58), 0, I58/F58) -> 1.683835129
A59: Street Lighting | B59: RTSR - Connection | C59: kW | D59: 1.636779612 | F59: 20173 | G59: =ROUND(D59*F59, 2) -> 33018.76 | H59: 0.006823313806 | I59: 33269.00691 | J59: =IF(ISERROR(I59/F59), 0, I59/F59) -> 1.649184896
A60: Unmetered Scattered Load | B60: RTSR - Connection | C60: kWh | D60: 0.005236585049 | E60: 1388270.71 | G60: =ROUND(D60*E60, 2) -> 7269.8 | H60: 0.001502301319 | I60: 7324.897313 | J60: =IF(ISERROR(I60/E60), 0, I60/E60) -> 0.005276274475

Sheet hidden1 (hidden)
A1: =IF('3. Rate Classes'!L17=1, '3. Rate Classes'!C17, "") -> Residential | B1: 1
A2: =IF('3. Rate Classes'!L18=1, '3. Rate Classes'!C18, "") -> General Service Less Than 50 kW | B2: 2
A3: =IF('3. Rate Classes'!L19=1, '3. Rate Classes'!C19, "") -> General Service 50 to 999 kW | B3: 3
A4: =IF('3. Rate Classes'!L20=1, '3. Rate Classes'!C20, "") -> General Service 1,000 to 4,999 kW | B4: 4
A5: =IF('3. Rate Classes'!L21=1, '3. Rate Classes'!C21, "") -> Large Use | B5: 5
A6: =IF('3. Rate Classes'!L22=1, '3. Rate Classes'!C22, "") -> Sentinel Lighting | B6: 6
A7: =IF('3. Rate Classes'!L23=1, '3. Rate Classes'!C23, "") -> Street Lighting | B7: 7
A8: =IF('3. Rate Classes'!L24=1, '3. Rate Classes'!C24, "") -> Unmetered Scattered Load | B8: 8
A9: =IF('3. Rate Classes'!L25=1, '3. Rate Classes'!C25, "") ->  | B9: 9
A10: =IF('3. Rate Classes'!L26=1, '3. Rate Classes'!C26, "") ->  | B10: 10
A11: =IF('3. Rate Classes'!L27=1, '3. Rate Classes'!C27, "") ->  | B11: 11
A12: =IF('3. Rate Classes'!L28=1, '3. Rate Classes'!C28, "") ->  | B12: 12
A13: =IF('3. Rate Classes'!L29=1, '3. Rate Classes'!C29, "") ->  | B13: 13
A14: =IF('3. Rate Classes'!L30=1, '3. Rate Classes'!C30, "") ->  | B14: 14
A15: =IF('3. Rate Classes'!L31=1, '3. Rate Classes'!C31, "") ->  | B15: 15
A16: =IF('3. Rate Classes'!L32=1, '3. Rate Classes'!C32, "") ->  | B16: 16
A17: =IF('3. Rate Classes'!L33=1, '3. Rate Classes'!C33, "") ->  | B17: 17
A18: =IF('3. Rate Classes'!L34=1, '3. Rate Classes'!C34, "") ->  | B18: 18
A19: =IF('3. Rate Classes'!L35=1, '3. Rate Classes'!C35, "") ->  | B19: 19
A20: =IF('3. Rate Classes'!L36=1, '3. Rate Classes'!C36, "") ->  | B20: 20
A21: =IF('3. Rate Classes'!L37=1, '3. Rate Classes'!C37, "") ->  | B21: 21
A22: =IF('3. Rate Classes'!L38=1, '3. Rate Classes'!C38, "") ->  | B22: 22
